Workbook

Sheet -- QNB - Current Account --
A1: الأهلى سوسيتية جنرال - جارى جنية مصرى حساب رقم / 62-10023370129
A2: مدين | B2: دائن | C2: رصيد | D2: البيـــــــــــان | E2: التاريخ
A3: =3995.02 -> 3995.02 | C3: =ROUND(A3-B3,2) -> 3995.02 | D3: رصيد أول المدة | E3: 2021-01-01
B4: 20 | C4: =ROUND(C3+A4-B4,2) -> 3975.02 | E4: 2021-01-01
B5: 26 | C5: =ROUND(C4+A5-B5,2) -> 3949.02 | E5: 2021-01-01
B6: =ROUND((2*15)+(2*6),2) -> 42 | C6: 3907.02 | E6: 2021-01-02
B7: 1400 | C7: 2507.02 | E7: 2021-01-02
A8: =ROUND(12*404.095,2) -> 4849.14 | C8: 7356.16 | E8: 2021-01-03
B9: =ROUND(1*180,2) -> 180 | C9: 7176.16 | E9: 2021-01-03
B10: =ROUND((1*1544.74)+(1*1544.74*14%),2) -> 1761 | C10: 5415.16 | E10: 2021-01-03
B11: =ROUND((1*222.3)+(1*222.3*0%),2) -> 222.3 | C11: 5192.86 | E11: 2021-01-03
B12: =ROUND((1*210)+(1*210*14%),2) -> 239.4 | C12: 4953.46 | E12: 2021-01-03
B13: =ROUND(1*2.3,2) -> 2.3 | C13: 4951.16 | E13: 2021-01-03
B14: =ROUND((2*97.89)+(2*2.11),2) -> 200 | C14: 4751.16 | E14: 2021-01-03
B15: 20 | C15: 4731.16 | E15: 2021-01-04
B16: =ROUND(6*30,2) -> 180 | C16: 4551.16 | E16: 2021-01-04
B17: 1440 | C17: 3111.16 | E17: 2021-01-04
B18: =ROUND((1*200)+(1*100),2) -> 300 | C18: 2811.16 | E18: 2021-01-04
B19: =ROUND(1*1000,2) -> 1000 | C19: 1811.16 | E19: 2021-01-04
B20: =ROUND(2*80,2) -> 160 | C20: 1651.16 | E20: 2021-01-04
B21: =ROUND((1*1000)-(1*300),2) -> 700 | C21: 951.16 | E21: 2021-01-04
B22: =ROUND((1*300)-(1*100),2) -> 200 | C22: 751.16 | E22: 2021-01-04
B23: =ROUND(1*700,2) -> 700 | C23: 51.16 | E23: 2021-01-04
B24: 10 | C24: 41.16 | E24: 2021-01-05
A25: =6-((2)) -> 4 | C25: 45.16 | E25: 2021-01-05
B26: 74.4 | C26: -29.24 | E26: 2021-01-05
A27: =ROUND(8*404.411,2) -> 3235.29 | C27: 3206.05 | E27: 2021-01-06
B28: =ROUND(1*800,2) -> 800 | C28: 2406.05 | E28: 2021-01-06
B29: =ROUND(1*80,2) -> 80 | C29: 2326.05 | E29: 2021-01-06
B30: 70 | C30: 2256.05 | E30: 2021-01-06
B31: =ROUND(15*30,2) -> 450 | C31: 1806.05 | E31: 2021-01-06
B32: 300 | C32: 1506.05 | E32: 2021-01-06
B33: =ROUND(4*41,2) -> 164 | C33: 1342.05 | E33: 2021-01-06
B34: =82.45-13.46 -> 68.99 | C34: 1273.06 | E34: 2021-01-06
B35: 235.8 | C35: 1037.26 | E35: 2021-01-07
B36: =ROUND(81.5*2,2) -> 163 | C36: 874.26 | E36: 2021-01-07
B37: 50 | C37: 824.26 | E37: 2021-01-07
B38: 400 | C38: 424.26 | E38: 2021-01-07
B39: =101.04 -> 101.04 | C39: 323.22 | E39: 2021-01-09
B40: =ROUND((2*15)+(2*5),2) -> 40 | C40: 283.22 | E40: 2021-01-09
B41: 90 | C41: 193.22 | E41: 2021-01-12
B42: =ROUND(2*55,2) -> 110 | C42: 83.22 | E42: 2021-01-12
A43: =ROUND(56383.83*75%,2) -> 42287.87 | C43: 42371.09 | E43: 2021-01-12
B44: =ROUND(29900-(24000),2) -> 5900 | C44: 36471.09 | E44: 2021-01-12
B45: 50 | C45: 36421.09 | E45: 2021-01-13
B46: =ROUND(15*30,2) -> 450 | C46: 35971.09 | E46: 2021-01-13
B47: 41.95 | C47: 35929.14 | E47: 2021-01-13
B48: =ROUND((1*60)+(1*60),2) -> 120 | C48: 35809.14 | E48: 2021-01-14
B49: =ROUND(1599*50%,2) -> 799.5 | C49: 35009.64 | E49: 2021-01-14
B50: =ROUND(856.64*50%,2) -> 428.32 | C50: 34581.32 | E50: 2021-01-16
B51: =ROUND(1*120,2) -> 120 | C51: 34461.32 | E51: 2021-01-17
B52: 1000 | C52: 33461.32 | E52: 2021-01-17
B53: 428.5 | C53: 33032.82 | E53: 2021-01-17
B54: 134.9 | C54: 32897.92 | E54: 2021-01-17
B55: =2700 -> 2700 | C55: 30197.92 | E55: 2021-01-18
B56: 20 | C56: 30177.92 | E56: 2021-01-19
B57: =ROUND(10*850,2) -> 8500 | C57: 21677.92 | E57: 2021-01-19
B58: 65 | C58: 21612.92 | E58: 2021-01-19
B59: =ROUND(52*405.892,2) -> 21106.38 | C59: 506.54 | E59: 2021-01-20
B60: 55 | C60: 451.54 | E60: 2021-01-20
B61: =ROUND(6*30,2) -> 180 | C61: 271.54 | E61: 2021-01-20
B62: 25.95 | C62: 245.59 | E62: 2021-01-20
B63: 30.5 | C63: 215.09 | E63: 2021-01-20
A64: =ROUND(4*405.997,2) -> 1623.99 | C64: 1839.08 | E64: 2021-01-21
B65: 50 | C65: 1789.08 | E65: 2021-01-21
B66: =ROUND(5*30,2) -> 150 | C66: 1639.08 | E66: 2021-01-21
B67: =ROUND(1*65,2) -> 65 | C67: 1574.08 | E67: 2021-01-21
B68: 716.98 | C68: 857.1 | E68: 2021-01-21
B69: 83.4 | C69: =ROUND(C68+A69-B69,2) -> 773.7 | E69: 2021-01-22
B70: 138 | C70: 635.7 | E70: 2021-01-22
B71: =ROUND(1*3.6,2) -> 3.6 | C71: 632.1 | E71: 2021-01-24
B72: 20 | C72: 612.1 | E72: 2021-01-24
B73: =ROUND(6*30,2) -> 180 | C73: 432.1 | E73: 2021-01-24
A74: 958000 | C74: 958432.1 | E74: 2021-01-25
A75: =ROUND(1000000-SUM($A$74),2) -> 42000 | C75: 1000432.1 | E75: 2021-01-25
A76: 10000 | C76: 1010432.1 | E76: 2021-01-25
B77: 4000 | C77: 1006432.1 | E77: 2021-01-25
B78: 3000 | C78: 1003432.1 | E78: 2021-01-25
B79: 3000 | C79: 1000432.1 | E79: 2021-01-25
B80: =ROUND(1*72.75,2) -> 72.75 | C80: 1000359.35 | E80: 2021-01-25
B81: =ROUND((0.5*64)+(0.5*68),2) -> 66 | C81: 1000293.35 | E81: 2021-01-25
B82: =293+((2)) -> 295 | C82: 999998.35 | E82: 2021-01-25
B83: 2 | C83: 999996.35 | E83: 2021-01-25
B84: =ROUND(102*406.523,2) -> 41465.35 | C84: 958531 | E84: 2021-01-26
B85: =ROUND(100+(100*14%),2) -> 114 | C85: 958417 | E85: 2021-01-26
A86: =ROUND(SUM($B$55),2) -> 2700 | C86: 961117 | E86: 2021-01-26
B87: 200 | C87: 960917 | E87: 2021-01-26
B88: 150 | C88: 960767 | E88: 2021-01-26
B89: 200 | C89: 960567 | E89: 2021-01-26
B90: =ROUND(1*380,2) -> 380 | C90: 960187 | E90: 2021-01-26
B91: 270 | C91: 959917 | E91: 2021-01-26
B92: 100 | C92: 959817 | E92: 2021-01-26
B93: 19 | C93: 959798 | E93: 2021-01-26
B94: 148.85 | C94: 959649.15 | E94: 2021-01-26
A95: =ROUND(4*406.629,2) -> 1626.52 | C95: 961275.67 | E95: 2021-01-27
A96: 50 | C96: 961325.67 | E96: 2021-01-27
B97: =ROUND(15*30,2) -> 450 | C97: 960875.67 | E97: 2021-01-27
B98: 304.6 | C98: 960571.07 | E98: 2021-01-27
B99: 87 | C99: 960484.07 | E99: 2021-01-27
B100: 111 | C100: 960373.07 | E100: 2021-01-27
B101: 13.5 | C101: 960359.57 | E101: 2021-01-27
B102: 10.5 | C102: 960349.07 | E102: 2021-01-27
B103: 518 | C103: 959831.07 | E103: 2021-01-28
B104: 799 | C104: 959032.07 | E104: 2021-01-28
B105: =ROUND((1500*1/5)+(1500*1/5)+(10)+(20)+(20)+(4.22),2) -> 654.22 | C105: 958377.85 | E105: 2021-01-27
B106: 15 | C106: 958362.85 | E106: 2021-01-31
A107: =CEILING(18970+(18970*15%),10) -> 21820 | C107: 980182.85 | E107: 2021-01-31
A108: =ROUNDUP(22042+(22042*15%),0) -> 25349 | C108: 1005531.85 | E108: 2021-01-31
B109: =625.5+(0.5) -> 626 | C109: 1004905.85 | E109: 2021-01-31
B110: 198.15 | C110: 1004707.7 | E110: 2021-01-31
B111: =47.46+((1)) -> 48.46 | C111: 1004659.24 | E111: 2021-02-01
B112: 100 | C112: 1004559.24 | E112: 2021-02-01
A113: 2000 | C113: 1006559.24 | E113: 2021-02-01
A114: 20 | C114: 1006579.24 | E114: 2021-02-02
A115: =ROUND(23*407.26,2) -> 9366.98 | C115: 1015946.22 | E115: 2021-02-02
B116: =ROUND(2467*407.26,2) -> 1004710.42 | C116: 11235.8 | E116: 2021-02-02
B117: =20+20 -> 40 | C117: 11195.8 | E117: 2021-02-02
B118: =ROUND(1*110,2) -> 110 | C118: 11085.8 | E118: 2021-02-02
B119: =ROUND(1*305,2) -> 305 | C119: 10780.8 | E119: 2021-02-02
B120: =ROUND(1*420,2) -> 420 | C120: 10360.8 | E120: 2021-02-02
B121: =ROUND(1*190,2) -> 190 | C121: 10170.8 | E121: 2021-02-02
B122: =ROUND(1*322,2) -> 322 | C122: 9848.8 | E122: 2021-02-02
B123: =ROUND(1*2937.4,2) -> 2937.4 | C123: 6911.4 | E123: 2021-02-02
B124: =ROUND(1*240,2) -> 240 | C124: 6671.4 | E124: 2021-02-02
B125: =ROUND(1*2,2)+((1)) -> 3 | C125: 6668.4 | E125: 2021-02-02
B126: =ROUND((1*5)+(1*20),2) -> 25 | C126: 6643.4 | E126: 2021-02-02
B127: =ROUND(1*5000,2) -> 5000 | C127: 1643.4 | E127: 2021-02-02
B128: =38 -> 38 | C128: 1605.4 | E128: 2021-02-02
B129: 35 | C129: 1570.4 | E129: 2021-02-03
A130: =ROUND(25*407.471,2) -> 10186.78 | C130: 11757.18 | E130: 2021-02-04
B131: =1500-((500)) -> 1000 | C131: 10757.18 | E131: 2021-02-04
B132: =2000-((500)) -> 1500 | C132: 9257.18 | E132: 2021-02-04
B133: =ROUND(1*1000,2) -> 1000 | C133: =ROUND(C132+A133-B133,2) -> 8257.18 | E133: 2021-02-04
B134: =ROUND((1*200)+(1*50),2) -> 250 | C134: 8007.18 | E134: 2021-02-04
B135: =ROUND(2*80,2) -> 160 | C135: 7847.18 | E135: 2021-02-04
B136: =ROUND(1*700,2) -> 700 | C136: 7147.18 | E136: 2021-02-04
B137: =ROUND((1*100)+(1*50),2) -> 150 | C137: 6997.18 | E137: 2021-02-04
B138: 600 | C138: 6397.18 | E138: 2021-02-04
B139: =ROUND(1*300,2) -> 300 | C139: 6097.18 | E139: 2021-02-04
B140: =ROUND(1*800,2) -> 800 | C140: 5297.18 | E140: 2021-02-04
B141: =ROUND(1*80,2) -> 80 | C141: 5217.18 | E141: 2021-02-04
B142: =15+40+2 -> 57 | C142: 5160.18 | E142: 2021-02-04
B143: =ROUND(12*30,2) -> 360 | C143: 4800.18 | E143: 2021-02-04
B144: 10 | C144: 4790.18 | E144: 2021-02-04
B145: 104 | C145: 4686.18 | E145: 2021-02-04
B146: 159.7 | C146: 4526.48 | E146: 2021-02-04
B147: 2837.07 | C147: 1689.41 | E147: 2021-02-05
B148: 527.08 | C148: 1162.33 | E148: 2021-02-05
B149: 26 | C149: 1136.33 | E149: 2021-02-05
B150: =ROUND(4*31,2) -> 124 | C150: 1012.33 | E150: 2021-02-05
B151: =ROUND(1*367,2)+((3)) -> 370 | C151: 642.33 | E151: 2021-02-06
B152: 130 | C152: 512.33 | E152: 2021-02-07
A153: =ROUND(1*407.893,2) -> 407.89 | C153: 920.22 | E153: 2021-02-08
B154: =99+((1)) -> 100 | C154: 820.22 | E154: 2021-02-08
B155: =ROUND(1*500,2) -> 500 | C155: 320.22 | E155: 2021-02-08
A156: =ROUND(SUM($B$104),2) -> 799 | C156: 1119.22 | E156: 2021-02-07
B157: 311 | C157: 808.22 | E157: 2021-02-08
A158: =40 -> 40 | B158: =ROUND((1*210)+(1*210*14%),2)+((0.6)) -> 240 | C158: 608.22 | E158: 2021-02-09
A159: =ROUND(53*407.999,2) -> 21623.95 | C159: 22232.17 | E159: 2021-02-09
B160: 20 | C160: 22212.17 | E160: 2021-02-09
B161: =ROUND((8*5)+(2*10)-(1*5),2) -> 55 | C161: 22157.17 | E161: 2021-02-09
B162: =ROUND((4*5)+(1*10)-(1*5),2) -> 25 | C162: 22132.17 | E162: 2021-02-09
B163: =ROUND((1*40)+(1*17)+(2*1.5),2) -> 60 | C163: 22072.17 | E163: 2021-02-09
B164: =ROUND(3*33,2) -> 99 | C164: 21973.17 | E164: 2021-02-09
B165: 61 | C165: 21912.17 | E165: 2021-02-09
B166: =66.23 -> 66.23 | C166: 21845.94 | E166: 2021-02-09
B167: =ROUND(862400*2.5%,2) -> 21560 | C167: 285.94 | E167: 2021-02-10
A168: =ROUND((862400*2.5%)-(600000*2.5%),2) -> 6560 | C168: 6845.94 | E168: 2021-02-10
B169: 100 | C169: 6745.94 | E169: 2021-02-10
B170: 60 | C170: 6685.94 | E170: 2021-02-10
B171: =ROUND(5*30,2) -> 150 | C171: 6535.94 | E171: 2021-02-10
A172: =ROUND(19*408.211,2) -> 7756.01 | C172: 14291.95 | E172: 2021-02-11
B173: 1450 | C173: 12841.95 | E173: 2021-02-11
B174: =ROUND(10*30,2) -> 300 | C174: 12541.95 | E174: 2021-02-11
B175: 300 | C175: 12241.95 | E175: 2021-02-11
B176: 200.3 | C176: 12041.65 | E176: 2021-02-12
B177: =ROUND((1824.21*2)+(1824.21*2)+((1824.21*2)+(1824.21*2))*28.96%,2) -> 9410 | C177: 2631.65 | E177: 2021-02-13
B178: =ROUND(1*35,2) -> 35 | C178: 2596.65 | E178: 2021-02-15
B179: =51.17 -> 51.17 | C179: 2545.48 | E179: 2021-02-15
B180: =ROUND(1*120,2) -> 120 | C180: 2425.48 | E180: 2021-02-17
B181: 600 | C181: 1825.48 | E181: 2021-02-17
B182: =ROUND(12*25,2) -> 300 | C182: 1525.48 | E182: 2021-02-17
B183: 150 | C183: 1375.48 | E183: 2021-02-17
B184: =ROUND(15*30,2) -> 450 | C184: 925.48 | E184: 2021-02-17
B185: 100 | C185: 825.48 | E185: 2021-02-17
B186: 60.65 | C186: 764.83 | E186: 2021-02-17
B187: =(200)+(200)+(200) -> 600 | C187: 164.83 | E187: 2021-02-21
B188: 100 | C188: 64.83 | E188: 2021-02-21
B189: 200 | C189: -135.17 | E189: 2021-02-21
B190: =(20)+(10) -> 30 | C190: -165.17 | E190: 2021-02-21
A191: =ROUND(SUM($B$190),2) -> 30 | C191: -135.17 | E191: 2021-02-21
A192: =ROUND(31*409.378,2) -> 12690.72 | C192: 12555.55 | E192: 2021-02-22
B193: =ROUND(10*1180,2) -> 11800 | C193: 755.55 | E193: 2021-02-22
B194: 200 | C194: 555.55 | E194: 2021-02-22
B195: =ROUND(1*3.6,2) -> 3.6 | C195: 551.95 | E195: 2021-02-22
B196: 120.5 | C196: 431.45 | E196: 2021-02-22
B197: 89.65 | C197: =ROUND(C196+A197-B197,2) -> 341.8 | E197: 2021-02-22
B198: 89.65 | C198: 252.15 | E198: 2021-02-22
A199: =ROUND(3*409.485,2) -> 1228.46 | C199: 1480.61 | E199: 2021-02-23
B200: 600 | C200: 880.61 | E200: 2021-02-23
... 1100 more rows

Sheet -- Trading Investments --
A2: م | C2: شراء | G2: إسترداد | K2: التكلفة الدفترية | L2: أرباح إسترداد | M2: التغير فى القيمة العادلة | O2: ربحية الوثيقة | Q2: رصيد | U2: البيـــــــان | V2: التاريخ | X2: م
C3: عدد الوثائق | D3: سعر الوثيقة | E3: قيمة | G3: عدد الوثائق | H3: سعر الوثيقة | I3: قيمة | Q3: عدد الوثائق | R3: متوسط السعر | S3: قيمة
A5: =IF(V5>0,ROW()-5,"") -> 0 | C5: 82 | D5: 403.779 | E5: =IF(C5>0,ROUND(C5*D5,2),"") -> 33109.88 | I5: =IF(G5>0,ROUND(G5*H5,2),"") ->  | K5: =IFERROR(IF(G5>0,ROUND(G5*R4,2),""),"") ->  | L5: =IFERROR(IF(G5>0,ROUND(I5-K5,2),""),"") ->  | M5: =IFERROR(IF(AND(V6="",$C$127>(SUM(S4,E5)-SUM(K5))/(SUM(Q4,C5)-SUM(G5)),V5>=DATE(YEAR('-- QNB - Current Account --'!$E$3),COLUMN($L$1)+1,0)),((SUM(Q4,C5)-SUM(G5))*$C$127)-((SUM(Q4,C5)-SUM(G5))*(R4)),""),"") ->  | O5: =IF(H5>0,ROUND(H5-R4,2),"") ->  | Q5: =C5-G5 -> 82 | R5: =IF(Q5>0,ROUND(S5/Q5,100),0) -> 403.7790244 | S5: =ROUND(SUM(E5,M5)-SUM(K5),100) -> 33109.88 | U5: رصيد أول المدة | V5: =SUM('-- QNB - Current Account --'!E3) -> 2021-01-01 | X5: =IF($V5="","",IFERROR(IF(MONTH($V6)=MONTH($V5),$X4+0,1),1)) -> 0
A6: =IF(V6>0,ROW()-5,"") -> 1 | E6: =IF(C6>0,ROUND(C6*D6,2),"") ->  | G6: 12 | H6: 404.095 | I6: =IF(G6>0,ROUND(G6*H6,2),"") -> 4849.14 | K6: =IFERROR(IF(G6>0,ROUND(G6*R5,2),""),"") -> 4845.35 | L6: =IFERROR(IF(G6>0,ROUND(I6-K6,2),""),"") -> 3.79 | M6: =IFERROR(IF(AND(V7="",$C$127>(SUM(S5,E6)-SUM(K6))/(SUM(Q5,C6)-SUM(G6)),V6>=DATE(YEAR('-- QNB - Current Account --'!$E$3),COLUMN($L$1)+1,0)),((SUM(Q5,C6)-SUM(G6))*$C$127)-((SUM(Q5,C6)-SUM(G6))*(R5)),""),"") ->  | O6: =IF(H6>0,ROUND(H6-R5,2),"") -> 0.32 | Q6: =Q5+C6-G6 -> 70 | R6: =IF(Q6>0,ROUND(S6/Q6,100),0) -> 403.779 | S6: =ROUND(SUM(S5,E6,M6)-SUM(K6),100) -> 28264.53 | U6: =IF(C6>0,CONCATENATE("شراء ","","",C6," وثيقة"),IF(G6>0,CONCATENATE("إسترداد ","","",G6," وثيقة"),IF(V6=DATE(YEAR('-- QNB - Current Account --'!$E$3),COLUMN($L$1)+1,0),CONCATENATE("إعادة تقييم رصيد الوثائق بسعر ","","",$U$37," جنية مصرى"),""))) -> إسترداد 12 وثيقة | V6: 2021-01-03 | X6: =IF($V6="","",IFERROR(IF(MONTH($V6)=MONTH($V5),$X5+1,1),1)) -> 1
A7: =IF(V7>0,ROW()-5,"") -> 2 | E7: =IF(C7>0,ROUND(C7*D7,2),"") ->  | G7: 8 | H7: 404.411 | I7: =IF(G7>0,ROUND(G7*H7,2),"") -> 3235.29 | K7: =IFERROR(IF(G7>0,ROUND(G7*R6,2),""),"") -> 3230.23 | L7: =IFERROR(IF(G7>0,ROUND(I7-K7,2),""),"") -> 5.06 | M7: =IFERROR(IF(AND(V8="",$C$127>(SUM(S6,E7)-SUM(K7))/(SUM(Q6,C7)-SUM(G7)),V7>=DATE(YEAR('-- QNB - Current Account --'!$E$3),COLUMN($L$1)+1,0)),((SUM(Q6,C7)-SUM(G7))*$C$127)-((SUM(Q6,C7)-SUM(G7))*(R6)),""),"") ->  | O7: =IF(H7>0,ROUND(H7-R6,2),"") -> 0.63 | Q7: =Q6+C7-G7 -> 62 | R7: =IF(Q7>0,ROUND(S7/Q7,100),0) -> 403.7790323 | S7: 25034.3 | U7: =IF(C7>0,CONCATENATE("شراء ","","",C7," وثيقة"),IF(G7>0,CONCATENATE("إسترداد ","","",G7," وثيقة"),IF(V7=DATE(YEAR('-- QNB - Current Account --'!$E$3),COLUMN($L$1)+1,0),CONCATENATE("إعادة تقييم رصيد الوثائق بسعر ","","",$U$37," جنية مصرى"),""))) -> إسترداد 8 وثيقة | V7: 2021-01-06 | X7: 2
A8: 3 | C8: 52 | D8: 405.892 | E8: 21106.38 | M8: =IFERROR(IF(AND(V9="",$C$127>(SUM(S7,E8)-SUM(K8))/(SUM(Q7,C8)-SUM(G8)),V8>=DATE(YEAR('-- QNB - Current Account --'!$E$3),COLUMN($L$1)+1,0)),((SUM(Q7,C8)-SUM(G8))*$C$127)-((SUM(Q7,C8)-SUM(G8))*(R7)),""),"") ->  | Q8: 114 | R8: 404.742807 | S8: 46140.68 | U8: =IF(C8>0,CONCATENATE("شراء ","","",C8," وثيقة"),IF(G8>0,CONCATENATE("إسترداد ","","",G8," وثيقة"),IF(V8=DATE(YEAR('-- QNB - Current Account --'!$E$3),COLUMN($L$1)+1,0),CONCATENATE("إعادة تقييم رصيد الوثائق بسعر ","","",$U$37," جنية مصرى"),""))) -> شراء 52 وثيقة | V8: 2021-01-20 | X8: 3
A9: 4 | G9: 4 | H9: 405.997 | I9: 1623.99 | K9: 1618.97 | L9: 5.02 | M9: =IFERROR(IF(AND(V10="",$C$127>(SUM(S8,E9)-SUM(K9))/(SUM(Q8,C9)-SUM(G9)),V9>=DATE(YEAR('-- QNB - Current Account --'!$E$3),COLUMN($L$1)+1,0)),((SUM(Q8,C9)-SUM(G9))*$C$127)-((SUM(Q8,C9)-SUM(G9))*(R8)),""),"") ->  | O9: 1.25 | Q9: 110 | R9: 404.7428182 | S9: 44521.71 | U9: =IF(C9>0,CONCATENATE("شراء ","","",C9," وثيقة"),IF(G9>0,CONCATENATE("إسترداد ","","",G9," وثيقة"),IF(V9=DATE(YEAR('-- QNB - Current Account --'!$E$3),COLUMN($L$1)+1,0),CONCATENATE("إعادة تقييم رصيد الوثائق بسعر ","","",$U$37," جنية مصرى"),""))) -> إسترداد 4 وثيقة | V9: 2021-01-21 | X9: 4
A10: 5 | C10: 102 | D10: 406.523 | E10: 41465.35 | I10: =IF(G10>0,ROUND(G10*H10,2),"") ->  | M10: =IFERROR(IF(AND(V11="",$C$127>(SUM(S9,E10)-SUM(K10))/(SUM(Q9,C10)-SUM(G10)),V10>=DATE(YEAR('-- QNB - Current Account --'!$E$3),COLUMN($L$1)+1,0)),((SUM(Q9,C10)-SUM(G10))*$C$127)-((SUM(Q9,C10)-SUM(G10))*(R9)),""),"") ->  | Q10: 212 | R10: 405.5993396 | S10: 85987.06 | U10: =IF(C10>0,CONCATENATE("شراء ","","",C10," وثيقة"),IF(G10>0,CONCATENATE("إسترداد ","","",G10," وثيقة"),IF(V10=DATE(YEAR('-- QNB - Current Account --'!$E$3),COLUMN($L$1)+1,0),CONCATENATE("إعادة تقييم رصيد الوثائق بسعر ","","",$U$37," جنية مصرى"),""))) -> شراء 102 وثيقة | V10: 2021-01-26 | X10: 5
A11: 6 | G11: 4 | H11: 406.628 | I11: 1626.51 | K11: 1622.4 | L11: 4.11 | M11: =IFERROR(IF(AND(V12="",$C$127>(SUM(S10,E11)-SUM(K11))/(SUM(Q10,C11)-SUM(G11)),V11>=DATE(YEAR('-- QNB - Current Account --'!$E$3),COLUMN($L$1)+1,0)),((SUM(Q10,C11)-SUM(G11))*$C$127)-((SUM(Q10,C11)-SUM(G11))*(R10)),""),"") ->  | O11: =IF(H11>0,ROUND(H11-R10,2),"") -> 1.03 | Q11: =Q10+C11-G11 -> 208 | R11: 405.5993269 | S11: 84364.66 | U11: =IF(C11>0,CONCATENATE("شراء ","","",C11," وثيقة"),IF(G11>0,CONCATENATE("إسترداد ","","",G11," وثيقة"),IF(V11=DATE(YEAR('-- QNB - Current Account --'!$E$3),COLUMN($L$1)+1,0),CONCATENATE("إعادة تقييم رصيد الوثائق بسعر ","","",$U$37," جنية مصرى"),""))) -> إسترداد 4 وثيقة | V11: 2021-01-27 | X11: 6
A12: 7 | G12: 23 | H12: 407.26 | I12: 9366.98 | K12: =IFERROR(IF(G12>0,ROUND(G12*R11,2),""),"") -> 9328.78 | L12: 38.2 | M12: =IFERROR(IF(AND(V13="",$C$127>(SUM(S11,E12)-SUM(K12))/(SUM(Q11,C12)-SUM(G12)),V12>=DATE(YEAR('-- QNB - Current Account --'!$E$3),COLUMN($L$1)+1,0)),((SUM(Q11,C12)-SUM(G12))*$C$127)-((SUM(Q11,C12)-SUM(G12))*(R11)),""),"") ->  | O12: =IF(H12>0,ROUND(H12-R11,2),"") -> 1.66 | Q12: =Q11+C12-G12 -> 185 | R12: =IF(Q12>0,ROUND(S12/Q12,100),0) -> 405.5993514 | S12: 75035.88 | U12: =IF(C12>0,CONCATENATE("شراء ","","",C12," وثيقة"),IF(G12>0,CONCATENATE("إسترداد ","","",G12," وثيقة"),IF(V12=DATE(YEAR('-- QNB - Current Account --'!$E$3),COLUMN($L$1)+1,0),CONCATENATE("إعادة تقييم رصيد الوثائق بسعر ","","",$U$37," جنية مصرى"),""))) -> إسترداد 23 وثيقة | V12: 2021-02-02 | X12: 1
A13: 8 | C13: 2467 | D13: 407.26 | E13: 1004710.42 | M13: =IFERROR(IF(AND(V14="",$C$127>(SUM(S12,E13)-SUM(K13))/(SUM(Q12,C13)-SUM(G13)),V13>=DATE(YEAR('-- QNB - Current Account --'!$E$3),COLUMN($L$1)+1,0)),((SUM(Q12,C13)-SUM(G13))*$C$127)-((SUM(Q12,C13)-SUM(G13))*(R12)),""),"") ->  | O13: =IF(H13>0,ROUND(H13-R12,2),"") ->  | Q13: =Q12+C13-G13 -> 2652 | R13: =IF(Q13>0,ROUND(S13/Q13,100),0) -> 407.1441554 | S13: 1079746.3 | U13: =IF(C13>0,CONCATENATE("شراء ","","",C13," وثيقة"),IF(G13>0,CONCATENATE("إسترداد ","","",G13," وثيقة"),IF(V13=DATE(YEAR('-- QNB - Current Account --'!$E$3),COLUMN($L$1)+1,0),CONCATENATE("إعادة تقييم رصيد الوثائق بسعر ","","",$U$37," جنية مصرى"),""))) -> شراء 2467 وثيقة | V13: 2021-02-02 | X13: 2
A14: 9 | G14: 25 | H14: 407.471 | I14: 10186.78 | K14: 10178.6 | L14: 8.18 | M14: =IFERROR(IF(AND(V15="",$C$127>(SUM(S13,E14)-SUM(K14))/(SUM(Q13,C14)-SUM(G14)),V14>=DATE(YEAR('-- QNB - Current Account --'!$E$3),COLUMN($L$1)+1,0)),((SUM(Q13,C14)-SUM(G14))*$C$127)-((SUM(Q13,C14)-SUM(G14))*(R13)),""),"") ->  | O14: 0.33 | Q14: 2627 | R14: 407.1441568 | S14: 1069567.7 | U14: =IF(C14>0,CONCATENATE("شراء ","","",C14," وثيقة"),IF(G14>0,CONCATENATE("إسترداد ","","",G14," وثيقة"),IF(V14=DATE(YEAR('-- QNB - Current Account --'!$E$3),COLUMN($L$1)+1,0),CONCATENATE("إعادة تقييم رصيد الوثائق بسعر ","","",$U$37," جنية مصرى"),""))) -> إسترداد 25 وثيقة | V14: 2021-02-04 | X14: 3
A15: 10 | G15: 1 | H15: 407.893 | I15: 407.89 | K15: 407.14 | L15: 0.75 | M15: =IFERROR(IF(AND(V16="",$C$127>(SUM(S14,E15)-SUM(K15))/(SUM(Q14,C15)-SUM(G15)),V15>=DATE(YEAR('-- QNB - Current Account --'!$E$3),COLUMN($L$1)+1,0)),((SUM(Q14,C15)-SUM(G15))*$C$127)-((SUM(Q14,C15)-SUM(G15))*(R14)),""),"") ->  | O15: 0.75 | Q15: 2626 | R15: 407.1441584 | S15: 1069160.56 | U15: =IF(C15>0,CONCATENATE("شراء ","","",C15," وثيقة"),IF(G15>0,CONCATENATE("إسترداد ","","",G15," وثيقة"),IF(V15=DATE(YEAR('-- QNB - Current Account --'!$E$3),COLUMN($L$1)+1,0),CONCATENATE("إعادة تقييم رصيد الوثائق بسعر ","","",$U$37," جنية مصرى"),""))) -> إسترداد 1 وثيقة | V15: 2021-02-08 | X15: 4
A16: 11 | G16: 53 | H16: 407.999 | I16: 21623.95 | K16: 21578.64 | L16: 45.31 | M16: =IFERROR(IF(AND(V17="",$C$127>(SUM(S15,E16)-SUM(K16))/(SUM(Q15,C16)-SUM(G16)),V16>=DATE(YEAR('-- QNB - Current Account --'!$E$3),COLUMN($L$1)+1,0)),((SUM(Q15,C16)-SUM(G16))*$C$127)-((SUM(Q15,C16)-SUM(G16))*(R15)),""),"") ->  | O16: 0.85 | Q16: 2573 | R16: 407.1441586 | S16: 1047581.92 | U16: =IF(C16>0,CONCATENATE("شراء ","","",C16," وثيقة"),IF(G16>0,CONCATENATE("إسترداد ","","",G16," وثيقة"),IF(V16=DATE(YEAR('-- QNB - Current Account --'!$E$3),COLUMN($L$1)+1,0),CONCATENATE("إعادة تقييم رصيد الوثائق بسعر ","","",$U$37," جنية مصرى"),""))) -> إسترداد 53 وثيقة | V16: 2021-02-09 | X16: 5
A17: 12 | G17: 19 | H17: 408.211 | I17: 7756.01 | K17: 7735.74 | L17: 20.27 | M17: =IFERROR(IF(AND(V18="",$C$127>(SUM(S16,E17)-SUM(K17))/(SUM(Q16,C17)-SUM(G17)),V17>=DATE(YEAR('-- QNB - Current Account --'!$E$3),COLUMN($L$1)+1,0)),((SUM(Q16,C17)-SUM(G17))*$C$127)-((SUM(Q16,C17)-SUM(G17))*(R16)),""),"") ->  | O17: 1.07 | Q17: 2554 | R17: 407.1441582 | S17: 1039846.18 | U17: =IF(C17>0,CONCATENATE("شراء ","","",C17," وثيقة"),IF(G17>0,CONCATENATE("إسترداد ","","",G17," وثيقة"),IF(V17=DATE(YEAR('-- QNB - Current Account --'!$E$3),COLUMN($L$1)+1,0),CONCATENATE("إعادة تقييم رصيد الوثائق بسعر ","","",$U$37," جنية مصرى"),""))) -> إسترداد 19 وثيقة | V17: 2021-02-11 | X17: 6
A18: 13 | G18: 31 | H18: 409.378 | I18: 12690.72 | K18: 12621.47 | L18: 69.25 | M18: =IFERROR(IF(AND(V19="",$C$127>(SUM(S17,E18)-SUM(K18))/(SUM(Q17,C18)-SUM(G18)),V18>=DATE(YEAR('-- QNB - Current Account --'!$E$3),COLUMN($L$1)+1,0)),((SUM(Q17,C18)-SUM(G18))*$C$127)-((SUM(Q17,C18)-SUM(G18))*(R17)),""),"") ->  | O18: 2.23 | Q18: 2523 | R18: 407.1441577 | S18: 1027224.71 | U18: =IF(C18>0,CONCATENATE("شراء ","","",C18," وثيقة"),IF(G18>0,CONCATENATE("إسترداد ","","",G18," وثيقة"),IF(V18=DATE(YEAR('-- QNB - Current Account --'!$E$3),COLUMN($L$1)+1,0),CONCATENATE("إعادة تقييم رصيد الوثائق بسعر ","","",$U$37," جنية مصرى"),""))) -> إسترداد 31 وثيقة | V18: 2021-02-22 | X18: 7
A19: 14 | G19: 3 | H19: 409.485 | I19: 1228.46 | K19: 1221.43 | L19: 7.03 | M19: =IFERROR(IF(AND(V20="",$C$127>(SUM(S18,E19)-SUM(K19))/(SUM(Q18,C19)-SUM(G19)),V19>=DATE(YEAR('-- QNB - Current Account --'!$E$3),COLUMN($L$1)+1,0)),((SUM(Q18,C19)-SUM(G19))*$C$127)-((SUM(Q18,C19)-SUM(G19))*(R18)),""),"") ->  | O19: 2.34 | Q19: 2520 | R19: 407.1441587 | S19: 1026003.28 | U19: =IF(C19>0,CONCATENATE("شراء ","","",C19," وثيقة"),IF(G19>0,CONCATENATE("إسترداد ","","",G19," وثيقة"),IF(V19=DATE(YEAR('-- QNB - Current Account --'!$E$3),COLUMN($L$1)+1,0),CONCATENATE("إعادة تقييم رصيد الوثائق بسعر ","","",$U$37," جنية مصرى"),""))) -> إسترداد 3 وثيقة | V19: 2021-02-23 | X19: 8
A20: 15 | G20: 482 | H20: 410.025 | I20: 197632.05 | K20: 196243.48 | L20: =IFERROR(IF(G20>0,ROUND(I20-K20,2),""),"") -> 1388.57 | M20: =IFERROR(IF(AND(V21="",$C$127>(SUM(S19,E20)-SUM(K20))/(SUM(Q19,C20)-SUM(G20)),V20>=DATE(YEAR('-- QNB - Current Account --'!$E$3),COLUMN($L$1)+1,0)),((SUM(Q19,C20)-SUM(G20))*$C$127)-((SUM(Q19,C20)-SUM(G20))*(R19)),""),"") ->  | O20: 2.88 | Q20: 2038 | R20: 407.1441609 | S20: 829759.8 | U20: =IF(C20>0,CONCATENATE("شراء ","","",C20," وثيقة"),IF(G20>0,CONCATENATE("إسترداد ","","",G20," وثيقة"),IF(V20=DATE(YEAR('-- QNB - Current Account --'!$E$3),COLUMN($L$1)+1,0),CONCATENATE("إعادة تقييم رصيد الوثائق بسعر ","","",$U$37," جنية مصرى"),""))) -> إسترداد 482 وثيقة | V20: 2021-02-28 | X20: 9
A21: 16 | G21: 5 | H21: 410.132 | I21: 2050.66 | K21: 2035.72 | L21: 14.94 | M21: =IFERROR(IF(AND(V22="",$C$127>(SUM(S20,E21)-SUM(K21))/(SUM(Q20,C21)-SUM(G21)),V21>=DATE(YEAR('-- QNB - Current Account --'!$E$3),COLUMN($L$1)+1,0)),((SUM(Q20,C21)-SUM(G21))*$C$127)-((SUM(Q20,C21)-SUM(G21))*(R20)),""),"") ->  | O21: 2.99 | Q21: 2033 | R21: 407.1441613 | S21: 827724.08 | U21: =IF(C21>0,CONCATENATE("شراء ","","",C21," وثيقة"),IF(G21>0,CONCATENATE("إسترداد ","","",G21," وثيقة"),IF(V21=DATE(YEAR('-- QNB - Current Account --'!$E$3),COLUMN($L$1)+1,0),CONCATENATE("إعادة تقييم رصيد الوثائق بسعر ","","",$U$37," جنية مصرى"),""))) -> إسترداد 5 وثيقة | V21: 2021-03-01 | X21: 1
A22: 17 | G22: 17 | H22: 410.239 | I22: 6974.06 | K22: 6921.45 | L22: 52.61 | M22: =IFERROR(IF(AND(V23="",$C$127>(SUM(S21,E22)-SUM(K22))/(SUM(Q21,C22)-SUM(G22)),V22>=DATE(YEAR('-- QNB - Current Account --'!$E$3),COLUMN($L$1)+1,0)),((SUM(Q21,C22)-SUM(G22))*$C$127)-((SUM(Q21,C22)-SUM(G22))*(R21)),""),"") ->  | O22: 3.09 | Q22: 2016 | R22: 407.1441617 | S22: 820802.63 | U22: =IF(C22>0,CONCATENATE("شراء ","","",C22," وثيقة"),IF(G22>0,CONCATENATE("إسترداد ","","",G22," وثيقة"),IF(V22=DATE(YEAR('-- QNB - Current Account --'!$E$3),COLUMN($L$1)+1,0),CONCATENATE("إعادة تقييم رصيد الوثائق بسعر ","","",$U$37," جنية مصرى"),""))) -> إسترداد 17 وثيقة | V22: 2021-03-02 | X22: 2
A23: 18 | C23: 2 | D23: 410.344 | E23: 820.69 | M23: =IFERROR(IF(AND(V24="",$C$127>(SUM(S22,E23)-SUM(K23))/(SUM(Q22,C23)-SUM(G23)),V23>=DATE(YEAR('-- QNB - Current Account --'!$E$3),COLUMN($L$1)+1,0)),((SUM(Q22,C23)-SUM(G23))*$C$127)-((SUM(Q22,C23)-SUM(G23))*(R22)),""),"") ->  | Q23: 2018 | R23: 407.147334 | S23: 821623.32 | U23: =IF(C23>0,CONCATENATE("شراء ","","",C23," وثيقة"),IF(G23>0,CONCATENATE("إسترداد ","","",G23," وثيقة"),IF(V23=DATE(YEAR('-- QNB - Current Account --'!$E$3),COLUMN($L$1)+1,0),CONCATENATE("إعادة تقييم رصيد الوثائق بسعر ","","",$U$37," جنية مصرى"),""))) -> شراء 2 وثيقة | V23: 2021-03-03 | X23: 3
A24: 19 | G24: 2 | H24: 410.449 | I24: 820.9 | K24: 814.29 | L24: 6.61 | M24: =IFERROR(IF(AND(V25="",$C$127>(SUM(S23,E24)-SUM(K24))/(SUM(Q23,C24)-SUM(G24)),V24>=DATE(YEAR('-- QNB - Current Account --'!$E$3),COLUMN($L$1)+1,0)),((SUM(Q23,C24)-SUM(G24))*$C$127)-((SUM(Q23,C24)-SUM(G24))*(R23)),""),"") ->  | O24: 3.3 | Q24: 2016 | R24: 407.1473363 | S24: 820809.03 | U24: =IF(C24>0,CONCATENATE("شراء ","","",C24," وثيقة"),IF(G24>0,CONCATENATE("إسترداد ","","",G24," وثيقة"),IF(V24=DATE(YEAR('-- QNB - Current Account --'!$E$3),COLUMN($L$1)+1,0),CONCATENATE("إعادة تقييم رصيد الوثائق بسعر ","","",$U$37," جنية مصرى"),""))) -> إسترداد 2 وثيقة | V24: 2021-03-04 | X24: 4
A25: 20 | G25: 3 | H25: 410.765 | I25: 1232.3 | K25: 1221.44 | L25: 10.86 | M25: =IFERROR(IF(AND(V26="",$C$127>(SUM(S24,E25)-SUM(K25))/(SUM(Q24,C25)-SUM(G25)),V25>=DATE(YEAR('-- QNB - Current Account --'!$E$3),COLUMN($L$1)+1,0)),((SUM(Q24,C25)-SUM(G25))*$C$127)-((SUM(Q24,C25)-SUM(G25))*(R24)),""),"") ->  | O25: 3.62 | Q25: 2013 | R25: 407.1473373 | S25: 819587.59 | U25: =IF(C25>0,CONCATENATE("شراء ","","",C25," وثيقة"),IF(G25>0,CONCATENATE("إسترداد ","","",G25," وثيقة"),IF(V25=DATE(YEAR('-- QNB - Current Account --'!$E$3),COLUMN($L$1)+1,0),CONCATENATE("إعادة تقييم رصيد الوثائق بسعر ","","",$U$37," جنية مصرى"),""))) -> إسترداد 3 وثيقة | V25: 2021-03-07 | X25: 5
A26: 21 | G26: 74 | H26: 410.87 | I26: 30404.38 | K26: 30128.9 | L26: 275.48 | M26: =IFERROR(IF(AND(V27="",$C$127>(SUM(S25,E26)-SUM(K26))/(SUM(Q25,C26)-SUM(G26)),V26>=DATE(YEAR('-- QNB - Current Account --'!$E$3),COLUMN($L$1)+1,0)),((SUM(Q25,C26)-SUM(G26))*$C$127)-((SUM(Q25,C26)-SUM(G26))*(R25)),""),"") ->  | O26: 3.72 | Q26: 1939 | R26: 407.1473388 | S26: 789458.69 | U26: =IF(C26>0,CONCATENATE("شراء ","","",C26," وثيقة"),IF(G26>0,CONCATENATE("إسترداد ","","",G26," وثيقة"),IF(V26=DATE(YEAR('-- QNB - Current Account --'!$E$3),COLUMN($L$1)+1,0),CONCATENATE("إعادة تقييم رصيد الوثائق بسعر ","","",$U$37," جنية مصرى"),""))) -> إسترداد 74 وثيقة | V26: 2021-03-08 | X26: 6
A27: 22 | G27: 2 | H27: 410.87 | I27: 821.74 | K27: 814.29 | L27: 7.45 | M27: =IFERROR(IF(AND(V28="",$C$127>(SUM(S26,E27)-SUM(K27))/(SUM(Q26,C27)-SUM(G27)),V27>=DATE(YEAR('-- QNB - Current Account --'!$E$3),COLUMN($L$1)+1,0)),((SUM(Q26,C27)-SUM(G27))*$C$127)-((SUM(Q26,C27)-SUM(G27))*(R26)),""),"") ->  | O27: 3.72 | Q27: 1937 | R27: 407.1473412 | S27: 788644.4 | U27: =IF(C27>0,CONCATENATE("شراء ","","",C27," وثيقة"),IF(G27>0,CONCATENATE("إسترداد ","","",G27," وثيقة"),IF(V27=DATE(YEAR('-- QNB - Current Account --'!$E$3),COLUMN($L$1)+1,0),CONCATENATE("إعادة تقييم رصيد الوثائق بسعر ","","",$U$37," جنية مصرى"),""))) -> إسترداد 2 وثيقة | V27: 2021-03-08 | X27: 7
A28: 23 | G28: 3 | H28: 411.188 | I28: 1233.56 | K28: 1221.44 | L28: 12.12 | M28: =IFERROR(IF(AND(V29="",$C$127>(SUM(S27,E28)-SUM(K28))/(SUM(Q27,C28)-SUM(G28)),V28>=DATE(YEAR('-- QNB - Current Account --'!$E$3),COLUMN($L$1)+1,0)),((SUM(Q27,C28)-SUM(G28))*$C$127)-((SUM(Q27,C28)-SUM(G28))*(R27)),""),"") ->  | O28: 4.04 | Q28: 1934 | R28: 407.1473423 | S28: 787422.96 | U28: =IF(C28>0,CONCATENATE("شراء ","","",C28," وثيقة"),IF(G28>0,CONCATENATE("إسترداد ","","",G28," وثيقة"),IF(V28=DATE(YEAR('-- QNB - Current Account --'!$E$3),COLUMN($L$1)+1,0),CONCATENATE("إعادة تقييم رصيد الوثائق بسعر ","","",$U$37," جنية مصرى"),""))) -> إسترداد 3 وثيقة | V28: 2021-03-11 | X28: 8
A29: 24 | G29: 3 | H29: 411.508 | I29: 1234.52 | K29: 1221.44 | L29: 13.08 | M29: =IFERROR(IF(AND(V30="",$C$127>(SUM(S28,E29)-SUM(K29))/(SUM(Q28,C29)-SUM(G29)),V29>=DATE(YEAR('-- QNB - Current Account --'!$E$3),COLUMN($L$1)+1,0)),((SUM(Q28,C29)-SUM(G29))*$C$127)-((SUM(Q28,C29)-SUM(G29))*(R28)),""),"") ->  | O29: 4.36 | Q29: 1931 | R29: 407.1473433 | S29: 786201.52 | U29: =IF(C29>0,CONCATENATE("شراء ","","",C29," وثيقة"),IF(G29>0,CONCATENATE("إسترداد ","","",G29," وثيقة"),IF(V29=DATE(YEAR('-- QNB - Current Account --'!$E$3),COLUMN($L$1)+1,0),CONCATENATE("إعادة تقييم رصيد الوثائق بسعر ","","",$U$37," جنية مصرى"),""))) -> إسترداد 3 وثيقة | V29: 2021-03-14 | X29: 9
A30: 25 | G30: 2 | H30: 411.721 | I30: 823.44 | K30: 814.29 | L30: 9.15 | M30: =IFERROR(IF(AND(V31="",$C$127>(SUM(S29,E30)-SUM(K30))/(SUM(Q29,C30)-SUM(G30)),V30>=DATE(YEAR('-- QNB - Current Account --'!$E$3),COLUMN($L$1)+1,0)),((SUM(Q29,C30)-SUM(G30))*$C$127)-((SUM(Q29,C30)-SUM(G30))*(R29)),""),"") ->  | O30: 4.57 | Q30: 1929 | R30: 407.1473458 | S30: 785387.23 | U30: =IF(C30>0,CONCATENATE("شراء ","","",C30," وثيقة"),IF(G30>0,CONCATENATE("إسترداد ","","",G30," وثيقة"),IF(V30=DATE(YEAR('-- QNB - Current Account --'!$E$3),COLUMN($L$1)+1,0),CONCATENATE("إعادة تقييم رصيد الوثائق بسعر ","","",$U$37," جنية مصرى"),""))) -> إسترداد 2 وثيقة | V30: 2021-03-16 | X30: 10
A31: 26 | G31: 2 | H31: 411.934 | I31: 823.87 | K31: 814.29 | L31: 9.58 | M31: =IFERROR(IF(AND(V32="",$C$127>(SUM(S30,E31)-SUM(K31))/(SUM(Q30,C31)-SUM(G31)),V31>=DATE(YEAR('-- QNB - Current Account --'!$E$3),COLUMN($L$1)+1,0)),((SUM(Q30,C31)-SUM(G31))*$C$127)-((SUM(Q30,C31)-SUM(G31))*(R30)),""),"") ->  | O31: 4.79 | Q31: 1927 | R31: 407.1473482 | S31: 784572.94 | U31: =IF(C31>0,CONCATENATE("شراء ","","",C31," وثيقة"),IF(G31>0,CONCATENATE("إسترداد ","","",G31," وثيقة"),IF(V31=DATE(YEAR('-- QNB - Current Account --'!$E$3),COLUMN($L$1)+1,0),CONCATENATE("إعادة تقييم رصيد الوثائق بسعر ","","",$U$37," جنية مصرى"),""))) -> إسترداد 2 وثيقة | V31: 2021-03-18 | X31: 11
A32: 27 | G32: 2 | H32: 412.254 | I32: 824.51 | K32: 814.29 | L32: 10.22 | M32: =IFERROR(IF(AND(V33="",$C$127>(SUM(S31,E32)-SUM(K32))/(SUM(Q31,C32)-SUM(G32)),V32>=DATE(YEAR('-- QNB - Current Account --'!$E$3),COLUMN($L$1)+1,0)),((SUM(Q31,C32)-SUM(G32))*$C$127)-((SUM(Q31,C32)-SUM(G32))*(R31)),""),"") ->  | O32: 5.11 | Q32: 1925 | R32: 407.1473506 | S32: 783758.65 | U32: =IF(C32>0,CONCATENATE("شراء ","","",C32," وثيقة"),IF(G32>0,CONCATENATE("إسترداد ","","",G32," وثيقة"),IF(V32=DATE(YEAR('-- QNB - Current Account --'!$E$3),COLUMN($L$1)+1,0),CONCATENATE("إعادة تقييم رصيد الوثائق بسعر ","","",$U$37," جنية مصرى"),""))) -> إسترداد 2 وثيقة | V32: 2021-03-21 | X32: 12
A33: 28 | G33: 3 | H33: 412.573 | I33: 1237.72 | K33: 1221.44 | L33: 16.28 | M33: =IFERROR(IF(AND(V34="",$C$127>(SUM(S32,E33)-SUM(K33))/(SUM(Q32,C33)-SUM(G33)),V33>=DATE(YEAR('-- QNB - Current Account --'!$E$3),COLUMN($L$1)+1,0)),((SUM(Q32,C33)-SUM(G33))*$C$127)-((SUM(Q32,C33)-SUM(G33))*(R32)),""),"") ->  | O33: 5.43 | Q33: 1922 | R33: 407.1473517 | S33: 782537.21 | U33: =IF(C33>0,CONCATENATE("شراء ","","",C33," وثيقة"),IF(G33>0,CONCATENATE("إسترداد ","","",G33," وثيقة"),IF(V33=DATE(YEAR('-- QNB - Current Account --'!$E$3),COLUMN($L$1)+1,0),CONCATENATE("إعادة تقييم رصيد الوثائق بسعر ","","",$U$37," جنية مصرى"),""))) -> إسترداد 3 وثيقة | V33: 2021-03-24 | X33: 13
A34: 29 | G34: 1 | H34: 412.679 | I34: 412.68 | K34: 407.15 | L34: 5.53 | M34: =IFERROR(IF(AND(V35="",$C$127>(SUM(S33,E34)-SUM(K34))/(SUM(Q33,C34)-SUM(G34)),V34>=DATE(YEAR('-- QNB - Current Account --'!$E$3),COLUMN($L$1)+1,0)),((SUM(Q33,C34)-SUM(G34))*$C$127)-((SUM(Q33,C34)-SUM(G34))*(R33)),""),"") ->  | O34: 5.53 | Q34: 1921 | R34: 407.1473503 | S34: 782130.06 | U34: =IF(C34>0,CONCATENATE("شراء ","","",C34," وثيقة"),IF(G34>0,CONCATENATE("إسترداد ","","",G34," وثيقة"),IF(V34=DATE(YEAR('-- QNB - Current Account --'!$E$3),COLUMN($L$1)+1,0),CONCATENATE("إعادة تقييم رصيد الوثائق بسعر ","","",$U$37," جنية مصرى"),""))) -> إسترداد 1 وثيقة | V34: 2021-03-25 | X34: 14
A35: 30 | C35: 58 | D35: 413.211 | E35: 23966.24 | M35: =IFERROR(IF(AND(V36="",$C$127>(SUM(S34,E35)-SUM(K35))/(SUM(Q34,C35)-SUM(G35)),V35>=DATE(YEAR('-- QNB - Current Account --'!$E$3),COLUMN($L$1)+1,0)),((SUM(Q34,C35)-SUM(G35))*$C$127)-((SUM(Q34,C35)-SUM(G35))*(R34)),""),"") ->  | Q35: 1979 | R35: 407.3250632 | S35: 806096.3 | U35: =IF(C35>0,CONCATENATE("شراء ","","",C35," وثيقة"),IF(G35>0,CONCATENATE("إسترداد ","","",G35," وثيقة"),IF(V35=DATE(YEAR('-- QNB - Current Account --'!$E$3),COLUMN($L$1)+1,0),CONCATENATE("إعادة تقييم رصيد الوثائق بسعر ","","",$U$37," جنية مصرى"),""))) -> شراء 58 وثيقة | V35: 2021-03-30 | X35: 15
A36: 31 | C36: 51 | D36: 413.317 | E36: 21079.17 | M36: =IFERROR(IF(AND(V37="",$C$127>(SUM(S35,E36)-SUM(K36))/(SUM(Q35,C36)-SUM(G36)),V36>=DATE(YEAR('-- QNB - Current Account --'!$E$3),COLUMN($L$1)+1,0)),((SUM(Q35,C36)-SUM(G36))*$C$127)-((SUM(Q35,C36)-SUM(G36))*(R35)),""),"") ->  | Q36: 2030 | R36: 407.475601 | S36: 827175.47 | U36: =IF(C36>0,CONCATENATE("شراء ","","",C36," وثيقة"),IF(G36>0,CONCATENATE("إسترداد ","","",G36," وثيقة"),IF(V36=DATE(YEAR('-- QNB - Current Account --'!$E$3),COLUMN($L$1)+1,0),CONCATENATE("إعادة تقييم رصيد الوثائق بسعر ","","",$U$37," جنية مصرى"),""))) -> شراء 51 وثيقة | V36: 2021-03-31 | X36: 16
A37: 32 | G37: 15 | H37: 413.423 | I37: 6201.35 | K37: 6112.13 | L37: 89.22 | M37: =IFERROR(IF(AND(V38="",$C$127>(SUM(S36,E37)-SUM(K37))/(SUM(Q36,C37)-SUM(G37)),V37>=DATE(YEAR('-- QNB - Current Account --'!$E$3),COLUMN($L$1)+1,0)),((SUM(Q36,C37)-SUM(G37))*$C$127)-((SUM(Q36,C37)-SUM(G37))*(R36)),""),"") ->  | O37: 5.95 | Q37: 2015 | R37: 407.475603 | S37: 821063.34 | U37: =IF(C37>0,CONCATENATE("شراء ","","",C37," وثيقة"),IF(G37>0,CONCATENATE("إسترداد ","","",G37," وثيقة"),IF(V37=DATE(YEAR('-- QNB - Current Account --'!$E$3),COLUMN($L$1)+1,0),CONCATENATE("إعادة تقييم رصيد الوثائق بسعر ","","",$U$37," جنية مصرى"),""))) -> إسترداد 15 وثيقة | V37: 2021-04-01 | X37: 1
A38: 33 | G38: 20 | H38: 413.74 | I38: 8274.8 | K38: 8149.51 | L38: 125.29 | M38: =IFERROR(IF(AND(V39="",$C$127>(SUM(S37,E38)-SUM(K38))/(SUM(Q37,C38)-SUM(G38)),V38>=DATE(YEAR('-- QNB - Current Account --'!$E$3),COLUMN($L$1)+1,0)),((SUM(Q37,C38)-SUM(G38))*$C$127)-((SUM(Q37,C38)-SUM(G38))*(R37)),""),"") ->  | O38: 6.26 | Q38: 1995 | R38: 407.475604 | S38: 812913.83 | U38: =IF(C38>0,CONCATENATE("شراء ","","",C38," وثيقة"),IF(G38>0,CONCATENATE("إسترداد ","","",G38," وثيقة"),IF(V38=DATE(YEAR('-- QNB - Current Account --'!$E$3),COLUMN($L$1)+1,0),CONCATENATE("إعادة تقييم رصيد الوثائق بسعر ","","",$U$37," جنية مصرى"),""))) -> إسترداد 20 وثيقة | V38: 2021-04-04 | X38: 2
A39: 34 | G39: 54 | H39: 413.846 | I39: 22347.68 | K39: 22003.68 | L39: 344 | M39: =IFERROR(IF(AND(V40="",$C$127>(SUM(S38,E39)-SUM(K39))/(SUM(Q38,C39)-SUM(G39)),V39>=DATE(YEAR('-- QNB - Current Account --'!$E$3),COLUMN($L$1)+1,0)),((SUM(Q38,C39)-SUM(G39))*$C$127)-((SUM(Q38,C39)-SUM(G39))*(R38)),""),"") ->  | O39: 6.37 | Q39: 1941 | R39: 407.4756054 | S39: 790910.15 | U39: =IF(C39>0,CONCATENATE("شراء ","","",C39," وثيقة"),IF(G39>0,CONCATENATE("إسترداد ","","",G39," وثيقة"),IF(V39=DATE(YEAR('-- QNB - Current Account --'!$E$3),COLUMN($L$1)+1,0),CONCATENATE("إعادة تقييم رصيد الوثائق بسعر ","","",$U$37," جنية مصرى"),""))) -> إسترداد 54 وثيقة | V39: 2021-04-05 | X39: 3
A40: 35 | G40: 28 | H40: 413.951 | I40: 11590.63 | K40: 11409.32 | L40: 181.31 | M40: =IFERROR(IF(AND(V41="",$C$127>(SUM(S39,E40)-SUM(K40))/(SUM(Q39,C40)-SUM(G40)),V40>=DATE(YEAR('-- QNB - Current Account --'!$E$3),COLUMN($L$1)+1,0)),((SUM(Q39,C40)-SUM(G40))*$C$127)-((SUM(Q39,C40)-SUM(G40))*(R39)),""),"") ->  | O40: 6.48 | Q40: 1913 | R40: 407.4756038 | S40: 779500.83 | U40: =IF(C40>0,CONCATENATE("شراء ","","",C40," وثيقة"),IF(G40>0,CONCATENATE("إسترداد ","","",G40," وثيقة"),IF(V40=DATE(YEAR('-- QNB - Current Account --'!$E$3),COLUMN($L$1)+1,0),CONCATENATE("إعادة تقييم رصيد الوثائق بسعر ","","",$U$37," جنية مصرى"),""))) -> إسترداد 28 وثيقة | V40: 2021-04-06 | X40: 4
A41: 36 | G41: 3 | H41: 414.058 | I41: 1242.17 | K41: 1222.43 | L41: 19.74 | M41: =IFERROR(IF(AND(V42="",$C$127>(SUM(S40,E41)-SUM(K41))/(SUM(Q40,C41)-SUM(G41)),V41>=DATE(YEAR('-- QNB - Current Account --'!$E$3),COLUMN($L$1)+1,0)),((SUM(Q40,C41)-SUM(G41))*$C$127)-((SUM(Q40,C41)-SUM(G41))*(R40)),""),"") ->  | O41: 6.58 | Q41: 1910 | R41: 407.4756021 | S41: 778278.4 | U41: =IF(C41>0,CONCATENATE("شراء ","","",C41," وثيقة"),IF(G41>0,CONCATENATE("إسترداد ","","",G41," وثيقة"),IF(V41=DATE(YEAR('-- QNB - Current Account --'!$E$3),COLUMN($L$1)+1,0),CONCATENATE("إعادة تقييم رصيد الوثائق بسعر ","","",$U$37," جنية مصرى"),""))) -> إسترداد 3 وثيقة | V41: 2021-04-07 | X41: 5
A42: 37 | G42: 8 | H42: 414.164 | I42: 3313.31 | K42: 3259.8 | L42: 53.51 | M42: =IFERROR(IF(AND(V43="",$C$127>(SUM(S41,E42)-SUM(K42))/(SUM(Q41,C42)-SUM(G42)),V42>=DATE(YEAR('-- QNB - Current Account --'!$E$3),COLUMN($L$1)+1,0)),((SUM(Q41,C42)-SUM(G42))*$C$127)-((SUM(Q41,C42)-SUM(G42))*(R41)),""),"") ->  | O42: 6.69 | Q42: 1902 | R42: 407.4756046 | S42: 775018.6 | U42: =IF(C42>0,CONCATENATE("شراء ","","",C42," وثيقة"),IF(G42>0,CONCATENATE("إسترداد ","","",G42," وثيقة"),IF(V42=DATE(YEAR('-- QNB - Current Account --'!$E$3),COLUMN($L$1)+1,0),CONCATENATE("إعادة تقييم رصيد الوثائق بسعر ","","",$U$37," جنية مصرى"),""))) -> إسترداد 8 وثيقة | V42: 2021-04-08 | X42: 6
M43: =IFERROR(IF(AND(V44="",$C$127>(SUM(S42,E43)-SUM(K43))/(SUM(Q42,C43)-SUM(G43)),V43>=DATE(YEAR('-- QNB - Current Account --'!$E$3),COLUMN($L$1)+1,0)),((SUM(Q42,C43)-SUM(G43))*$C$127)-((SUM(Q42,C43)-SUM(G43))*(R42)),""),"") ->  | Q43: 1902 | R43: 407.4756046 | S43: 775018.6 | U43: =IF(C43>0,CONCATENATE("شراء ","","",C43," وثيقة"),IF(G43>0,CONCATENATE("إسترداد ","","",G43," وثيقة"),IF(V43=DATE(YEAR('-- QNB - Current Account --'!$E$3),COLUMN($L$1)+1,0),CONCATENATE("إعادة تقييم رصيد الوثائق بسعر ","","",$U$37," جنية مصرى"),""))) -> 
M44: =IFERROR(IF(AND(V45="",$C$127>(SUM(S43,E44)-SUM(K44))/(SUM(Q43,C44)-SUM(G44)),V44>=DATE(YEAR('-- QNB - Current Account --'!$E$3),COLUMN($L$1)+1,0)),((SUM(Q43,C44)-SUM(G44))*$C$127)-((SUM(Q43,C44)-SUM(G44))*(R43)),""),"") ->  | Q44: 1902 | R44: 407.4756046 | S44: 775018.6 | U44: =IF(C44>0,CONCATENATE("شراء ","","",C44," وثيقة"),IF(G44>0,CONCATENATE("إسترداد ","","",G44," وثيقة"),IF(V44=DATE(YEAR('-- QNB - Current Account --'!$E$3),COLUMN($L$1)+1,0),CONCATENATE("إعادة تقييم رصيد الوثائق بسعر ","","",$U$37," جنية مصرى"),""))) -> 
M45: =IFERROR(IF(AND(V46="",$C$127>(SUM(S44,E45)-SUM(K45))/(SUM(Q44,C45)-SUM(G45)),V45>=DATE(YEAR('-- QNB - Current Account --'!$E$3),COLUMN($L$1)+1,0)),((SUM(Q44,C45)-SUM(G45))*$C$127)-((SUM(Q44,C45)-SUM(G45))*(R44)),""),"") ->  | Q45: 1902 | R45: 407.4756046 | S45: 775018.6 | U45: =IF(C45>0,CONCATENATE("شراء ","","",C45," وثيقة"),IF(G45>0,CONCATENATE("إسترداد ","","",G45," وثيقة"),IF(V45=DATE(YEAR('-- QNB - Current Account --'!$E$3),COLUMN($L$1)+1,0),CONCATENATE("إعادة تقييم رصيد الوثائق بسعر ","","",$U$37," جنية مصرى"),""))) -> 
K46: =IFERROR(IF(G46>0,ROUND(G46*R45,2),""),"") ->  | M46: =IFERROR(IF(AND(V47="",$C$127>(SUM(S45,E46)-SUM(K46))/(SUM(Q45,C46)-SUM(G46)),V46>=DATE(YEAR('-- QNB - Current Account --'!$E$3),COLUMN($L$1)+1,0)),((SUM(Q45,C46)-SUM(G46))*$C$127)-((SUM(Q45,C46)-SUM(G46))*(R45)),""),"") ->  | Q46: 1902 | R46: 407.4756046 | S46: 775018.6 | U46: =IF(C46>0,CONCATENATE("شراء ","","",C46," وثيقة"),IF(G46>0,CONCATENATE("إسترداد ","","",G46," وثيقة"),IF(V46=DATE(YEAR('-- QNB - Current Account --'!$E$3),COLUMN($L$1)+1,0),CONCATENATE("إعادة تقييم رصيد الوثائق بسعر ","","",$U$37," جنية مصرى"),""))) -> 
M47: =IFERROR(IF(AND(V48="",$C$127>(SUM(S46,E47)-SUM(K47))/(SUM(Q46,C47)-SUM(G47)),V47>=DATE(YEAR('-- QNB - Current Account --'!$E$3),COLUMN($L$1)+1,0)),((SUM(Q46,C47)-SUM(G47))*$C$127)-((SUM(Q46,C47)-SUM(G47))*(R46)),""),"") ->  | Q47: 1902 | R47: 407.4756046 | S47: 775018.6 | U47: =IF(C47>0,CONCATENATE("شراء ","","",C47," وثيقة"),IF(G47>0,CONCATENATE("إسترداد ","","",G47," وثيقة"),IF(V47=DATE(YEAR('-- QNB - Current Account --'!$E$3),COLUMN($L$1)+1,0),CONCATENATE("إعادة تقييم رصيد الوثائق بسعر ","","",$U$37," جنية مصرى"),""))) -> 
M48: =IFERROR(IF(AND(V49="",$C$127>(SUM(S47,E48)-SUM(K48))/(SUM(Q47,C48)-SUM(G48)),V48>=DATE(YEAR('-- QNB - Current Account --'!$E$3),COLUMN($L$1)+1,0)),((SUM(Q47,C48)-SUM(G48))*$C$127)-((SUM(Q47,C48)-SUM(G48))*(R47)),""),"") ->  | Q48: 1902 | R48: 407.4756046 | S48: 775018.6 | U48: =IF(C48>0,CONCATENATE("شراء ","","",C48," وثيقة"),IF(G48>0,CONCATENATE("إسترداد ","","",G48," وثيقة"),IF(V48=DATE(YEAR('-- QNB - Current Account --'!$E$3),COLUMN($L$1)+1,0),CONCATENATE("إعادة تقييم رصيد الوثائق بسعر ","","",$U$37," جنية مصرى"),""))) -> 
M49: =IFERROR(IF(AND(V50="",$C$127>(SUM(S48,E49)-SUM(K49))/(SUM(Q48,C49)-SUM(G49)),V49>=DATE(YEAR('-- QNB - Current Account --'!$E$3),COLUMN($L$1)+1,0)),((SUM(Q48,C49)-SUM(G49))*$C$127)-((SUM(Q48,C49)-SUM(G49))*(R48)),""),"") ->  | Q49: 1902 | R49: 407.4756046 | S49: 775018.6 | U49: =IF(C49>0,CONCATENATE("شراء ","","",C49," وثيقة"),IF(G49>0,CONCATENATE("إسترداد ","","",G49," وثيقة"),IF(V49=DATE(YEAR('-- QNB - Current Account --'!$E$3),COLUMN($L$1)+1,0),CONCATENATE("إعادة تقييم رصيد الوثائق بسعر ","","",$U$37," جنية مصرى"),""))) -> 
M50: =IFERROR(IF(AND(V51="",$C$127>(SUM(S49,E50)-SUM(K50))/(SUM(Q49,C50)-SUM(G50)),V50>=DATE(YEAR('-- QNB - Current Account --'!$E$3),COLUMN($L$1)+1,0)),((SUM(Q49,C50)-SUM(G50))*$C$127)-((SUM(Q49,C50)-SUM(G50))*(R49)),""),"") ->  | Q50: 1902 | R50: 407.4756046 | S50: 775018.6 | U50: =IF(C50>0,CONCATENATE("شراء ","","",C50," وثيقة"),IF(G50>0,CONCATENATE("إسترداد ","","",G50," وثيقة"),IF(V50=DATE(YEAR('-- QNB - Current Account --'!$E$3),COLUMN($L$1)+1,0),CONCATENATE("إعادة تقييم رصيد الوثائق بسعر ","","",$U$37," جنية مصرى"),""))) -> 
M51: =IFERROR(IF(AND(V52="",$C$127>(SUM(S50,E51)-SUM(K51))/(SUM(Q50,C51)-SUM(G51)),V51>=DATE(YEAR('-- QNB - Current Account --'!$E$3),COLUMN($L$1)+1,0)),((SUM(Q50,C51)-SUM(G51))*$C$127)-((SUM(Q50,C51)-SUM(G51))*(R50)),""),"") ->  | Q51: 1902 | R51: 407.4756046 | S51: 775018.6 | U51: =IF(C51>0,CONCATENATE("شراء ","","",C51," وثيقة"),IF(G51>0,CONCATENATE("إسترداد ","","",G51," وثيقة"),IF(V51=DATE(YEAR('-- QNB - Current Account --'!$E$3),COLUMN($L$1)+1,0),CONCATENATE("إعادة تقييم رصيد الوثائق بسعر ","","",$U$37," جنية مصرى"),""))) -> 
M52: =IFERROR(IF(AND(V53="",$C$127>(SUM(S51,E52)-SUM(K52))/(SUM(Q51,C52)-SUM(G52)),V52>=DATE(YEAR('-- QNB - Current Account --'!$E$3),COLUMN($L$1)+1,0)),((SUM(Q51,C52)-SUM(G52))*$C$127)-((SUM(Q51,C52)-SUM(G52))*(R51)),""),"") ->  | Q52: 1902 | R52: 407.4756046 | S52: 775018.6 | U52: =IF(C52>0,CONCATENATE("شراء ","","",C52," وثيقة"),IF(G52>0,CONCATENATE("إسترداد ","","",G52," وثيقة"),IF(V52=DATE(YEAR('-- QNB - Current Account --'!$E$3),COLUMN($L$1)+1,0),CONCATENATE("إعادة تقييم رصيد الوثائق بسعر ","","",$U$37," جنية مصرى"),""))) -> 
M53: =IFERROR(IF(AND(V54="",$C$127>(SUM(S52,E53)-SUM(K53))/(SUM(Q52,C53)-SUM(G53)),V53>=DATE(YEAR('-- QNB - Current Account --'!$E$3),COLUMN($L$1)+1,0)),((SUM(Q52,C53)-SUM(G53))*$C$127)-((SUM(Q52,C53)-SUM(G53))*(R52)),""),"") ->  | Q53: 1902 | R53: 407.4756046 | S53: 775018.6 | U53: =IF(C53>0,CONCATENATE("شراء ","","",C53," وثيقة"),IF(G53>0,CONCATENATE("إسترداد ","","",G53," وثيقة"),IF(V53=DATE(YEAR('-- QNB - Current Account --'!$E$3),COLUMN($L$1)+1,0),CONCATENATE("إعادة تقييم رصيد الوثائق بسعر ","","",$U$37," جنية مصرى"),""))) -> 
M54: =IFERROR(IF(AND(V55="",$C$127>(SUM(S53,E54)-SUM(K54))/(SUM(Q53,C54)-SUM(G54)),V54>=DATE(YEAR('-- QNB - Current Account --'!$E$3),COLUMN($L$1)+1,0)),((SUM(Q53,C54)-SUM(G54))*$C$127)-((SUM(Q53,C54)-SUM(G54))*(R53)),""),"") ->  | Q54: 1902 | R54: 407.4756046 | S54: 775018.6 | U54: =IF(C54>0,CONCATENATE("شراء ","","",C54," وثيقة"),IF(G54>0,CONCATENATE("إسترداد ","","",G54," وثيقة"),IF(V54=DATE(YEAR('-- QNB - Current Account --'!$E$3),COLUMN($L$1)+1,0),CONCATENATE("إعادة تقييم رصيد الوثائق بسعر ","","",$U$37," جنية مصرى"),""))) -> 
I55: =IF(G55>0,ROUND(G55*H55,2),"") ->  | M55: =IFERROR(IF(AND(V56="",$C$127>(SUM(S54,E55)-SUM(K55))/(SUM(Q54,C55)-SUM(G55)),V55>=DATE(YEAR('-- QNB - Current Account --'!$E$3),COLUMN($L$1)+1,0)),((SUM(Q54,C55)-SUM(G55))*$C$127)-((SUM(Q54,C55)-SUM(G55))*(R54)),""),"") ->  | Q55: 1902 | R55: 407.4756046 | S55: 775018.6 | U55: =IF(C55>0,CONCATENATE("شراء ","","",C55," وثيقة"),IF(G55>0,CONCATENATE("إسترداد ","","",G55," وثيقة"),IF(V55=DATE(YEAR('-- QNB - Current Account --'!$E$3),COLUMN($L$1)+1,0),CONCATENATE("إعادة تقييم رصيد الوثائق بسعر ","","",$U$37," جنية مصرى"),""))) -> 
M56: =IFERROR(IF(AND(V57="",$C$127>(SUM(S55,E56)-SUM(K56))/(SUM(Q55,C56)-SUM(G56)),V56>=DATE(YEAR('-- QNB - Current Account --'!$E$3),COLUMN($L$1)+1,0)),((SUM(Q55,C56)-SUM(G56))*$C$127)-((SUM(Q55,C56)-SUM(G56))*(R55)),""),"") ->  | Q56: 1902 | R56: 407.4756046 | S56: 775018.6 | U56: =IF(C56>0,CONCATENATE("شراء ","","",C56," وثيقة"),IF(G56>0,CONCATENATE("إسترداد ","","",G56," وثيقة"),IF(V56=DATE(YEAR('-- QNB - Current Account --'!$E$3),COLUMN($L$1)+1,0),CONCATENATE("إعادة تقييم رصيد الوثائق بسعر ","","",$U$37," جنية مصرى"),""))) -> 
M57: =IFERROR(IF(AND(V58="",$C$127>(SUM(S56,E57)-SUM(K57))/(SUM(Q56,C57)-SUM(G57)),V57>=DATE(YEAR('-- QNB - Current Account --'!$E$3),COLUMN($L$1)+1,0)),((SUM(Q56,C57)-SUM(G57))*$C$127)-((SUM(Q56,C57)-SUM(G57))*(R56)),""),"") ->  | Q57: 1902 | R57: 407.4756046 | S57: 775018.6 | U57: =IF(C57>0,CONCATENATE("شراء ","","",C57," وثيقة"),IF(G57>0,CONCATENATE("إسترداد ","","",G57," وثيقة"),IF(V57=DATE(YEAR('-- QNB - Current Account --'!$E$3),COLUMN($L$1)+1,0),CONCATENATE("إعادة تقييم رصيد الوثائق بسعر ","","",$U$37," جنية مصرى"),""))) -> 
M58: =IFERROR(IF(AND(V59="",$C$127>(SUM(S57,E58)-SUM(K58))/(SUM(Q57,C58)-SUM(G58)),V58>=DATE(YEAR('-- QNB - Current Account --'!$E$3),COLUMN($L$1)+1,0)),((SUM(Q57,C58)-SUM(G58))*$C$127)-((SUM(Q57,C58)-SUM(G58))*(R57)),""),"") ->  | Q58: 1902 | R58: 407.4756046 | S58: 775018.6 | U58: =IF(C58>0,CONCATENATE("شراء ","","",C58," وثيقة"),IF(G58>0,CONCATENATE("إسترداد ","","",G58," وثيقة"),IF(V58=DATE(YEAR('-- QNB - Current Account --'!$E$3),COLUMN($L$1)+1,0),CONCATENATE("إعادة تقييم رصيد الوثائق بسعر ","","",$U$37," جنية مصرى"),""))) -> 
M59: =IFERROR(IF(AND(V60="",$C$127>(SUM(S58,E59)-SUM(K59))/(SUM(Q58,C59)-SUM(G59)),V59>=DATE(YEAR('-- QNB - Current Account --'!$E$3),COLUMN($L$1)+1,0)),((SUM(Q58,C59)-SUM(G59))*$C$127)-((SUM(Q58,C59)-SUM(G59))*(R58)),""),"") ->  | Q59: 1902 | R59: 407.4756046 | S59: 775018.6 | U59: =IF(C59>0,CONCATENATE("شراء ","","",C59," وثيقة"),IF(G59>0,CONCATENATE("إسترداد ","","",G59," وثيقة"),IF(V59=DATE(YEAR('-- QNB - Current Account --'!$E$3),COLUMN($L$1)+1,0),CONCATENATE("إعادة تقييم رصيد الوثائق بسعر ","","",$U$37," جنية مصرى"),""))) -> 
M60: =IFERROR(IF(AND(V61="",$C$127>(SUM(S59,E60)-SUM(K60))/(SUM(Q59,C60)-SUM(G60)),V60>=DATE(YEAR('-- QNB - Current Account --'!$E$3),COLUMN($L$1)+1,0)),((SUM(Q59,C60)-SUM(G60))*$C$127)-((SUM(Q59,C60)-SUM(G60))*(R59)),""),"") ->  | Q60: 1902 | R60: 407.4756046 | S60: 775018.6 | U60: =IF(C60>0,CONCATENATE("شراء ","","",C60," وثيقة"),IF(G60>0,CONCATENATE("إسترداد ","","",G60," وثيقة"),IF(V60=DATE(YEAR('-- QNB - Current Account --'!$E$3),COLUMN($L$1)+1,0),CONCATENATE("إعادة تقييم رصيد الوثائق بسعر ","","",$U$37," جنية مصرى"),""))) -> 
M61: =IFERROR(IF(AND(V62="",$C$127>(SUM(S60,E61)-SUM(K61))/(SUM(Q60,C61)-SUM(G61)),V61>=DATE(YEAR('-- QNB - Current Account --'!$E$3),COLUMN($L$1)+1,0)),((SUM(Q60,C61)-SUM(G61))*$C$127)-((SUM(Q60,C61)-SUM(G61))*(R60)),""),"") ->  | Q61: 1902 | R61: 407.4756046 | S61: 775018.6 | U61: =IF(C61>0,CONCATENATE("شراء ","","",C61," وثيقة"),IF(G61>0,CONCATENATE("إسترداد ","","",G61," وثيقة"),IF(V61=DATE(YEAR('-- QNB - Current Account --'!$E$3),COLUMN($L$1)+1,0),CONCATENATE("إعادة تقييم رصيد الوثائق بسعر ","","",$U$37," جنية مصرى"),""))) -> 
M62: =IFERROR(IF(AND(V63="",$C$127>(SUM(S61,E62)-SUM(K62))/(SUM(Q61,C62)-SUM(G62)),V62>=DATE(YEAR('-- QNB - Current Account --'!$E$3),COLUMN($L$1)+1,0)),((SUM(Q61,C62)-SUM(G62))*$C$127)-((SUM(Q61,C62)-SUM(G62))*(R61)),""),"") ->  | Q62: 1902 | R62: 407.4756046 | S62: 775018.6 | U62: =IF(C62>0,CONCATENATE("شراء ","","",C62," وثيقة"),IF(G62>0,CONCATENATE("إسترداد ","","",G62," وثيقة"),IF(V62=DATE(YEAR('-- QNB - Current Account --'!$E$3),COLUMN($L$1)+1,0),CONCATENATE("إعادة تقييم رصيد الوثائق بسعر ","","",$U$37," جنية مصرى"),""))) -> 
M63: =IFERROR(IF(AND(V64="",$C$127>(SUM(S62,E63)-SUM(K63))/(SUM(Q62,C63)-SUM(G63)),V63>=DATE(YEAR('-- QNB - Current Account --'!$E$3),COLUMN($L$1)+1,0)),((SUM(Q62,C63)-SUM(G63))*$C$127)-((SUM(Q62,C63)-SUM(G63))*(R62)),""),"") ->  | Q63: 1902 | R63: 407.4756046 | S63: 775018.6 | U63: =IF(C63>0,CONCATENATE("شراء ","","",C63," وثيقة"),IF(G63>0,CONCATENATE("إسترداد ","","",G63," وثيقة"),IF(V63=DATE(YEAR('-- QNB - Current Account --'!$E$3),COLUMN($L$1)+1,0),CONCATENATE("إعادة تقييم رصيد الوثائق بسعر ","","",$U$37," جنية مصرى"),""))) -> 
M64: =IFERROR(IF(AND(V65="",$C$127>(SUM(S63,E64)-SUM(K64))/(SUM(Q63,C64)-SUM(G64)),V64>=DATE(YEAR('-- QNB - Current Account --'!$E$3),COLUMN($L$1)+1,0)),((SUM(Q63,C64)-SUM(G64))*$C$127)-((SUM(Q63,C64)-SUM(G64))*(R63)),""),"") ->  | Q64: 1902 | R64: 407.4756046 | S64: 775018.6 | U64: =IF(C64>0,CONCATENATE("شراء ","","",C64," وثيقة"),IF(G64>0,CONCATENATE("إسترداد ","","",G64," وثيقة"),IF(V64=DATE(YEAR('-- QNB - Current Account --'!$E$3),COLUMN($L$1)+1,0),CONCATENATE("إعادة تقييم رصيد الوثائق بسعر ","","",$U$37," جنية مصرى"),""))) -> 
M65: =IFERROR(IF(AND(V66="",$C$127>(SUM(S64,E65)-SUM(K65))/(SUM(Q64,C65)-SUM(G65)),V65>=DATE(YEAR('-- QNB - Current Account --'!$E$3),COLUMN($L$1)+1,0)),((SUM(Q64,C65)-SUM(G65))*$C$127)-((SUM(Q64,C65)-SUM(G65))*(R64)),""),"") ->  | Q65: 1902 | R65: 407.4756046 | S65: 775018.6 | U65: =IF(C65>0,CONCATENATE("شراء ","","",C65," وثيقة"),IF(G65>0,CONCATENATE("إسترداد ","","",G65," وثيقة"),IF(V65=DATE(YEAR('-- QNB - Current Account --'!$E$3),COLUMN($L$1)+1,0),CONCATENATE("إعادة تقييم رصيد الوثائق بسعر ","","",$U$37," جنية مصرى"),""))) -> 
M66: =IFERROR(IF(AND(V67="",$C$127>(SUM(S65,E66)-SUM(K66))/(SUM(Q65,C66)-SUM(G66)),V66>=DATE(YEAR('-- QNB - Current Account --'!$E$3),COLUMN($L$1)+1,0)),((SUM(Q65,C66)-SUM(G66))*$C$127)-((SUM(Q65,C66)-SUM(G66))*(R65)),""),"") ->  | Q66: 1902 | R66: 407.4756046 | S66: 775018.6 | U66: =IF(C66>0,CONCATENATE("شراء ","","",C66," وثيقة"),IF(G66>0,CONCATENATE("إسترداد ","","",G66," وثيقة"),IF(V66=DATE(YEAR('-- QNB - Current Account --'!$E$3),COLUMN($L$1)+1,0),CONCATENATE("إعادة تقييم رصيد الوثائق بسعر ","","",$U$37," جنية مصرى"),""))) -> 
M67: =IFERROR(IF(AND(V68="",$C$127>(SUM(S66,E67)-SUM(K67))/(SUM(Q66,C67)-SUM(G67)),V67>=DATE(YEAR('-- QNB - Current Account --'!$E$3),COLUMN($L$1)+1,0)),((SUM(Q66,C67)-SUM(G67))*$C$127)-((SUM(Q66,C67)-SUM(G67))*(R66)),""),"") ->  | Q67: 1902 | R67: 407.4756046 | S67: 775018.6 | U67: =IF(C67>0,CONCATENATE("شراء ","","",C67," وثيقة"),IF(G67>0,CONCATENATE("إسترداد ","","",G67," وثيقة"),IF(V67=DATE(YEAR('-- QNB - Current Account --'!$E$3),COLUMN($L$1)+1,0),CONCATENATE("إعادة تقييم رصيد الوثائق بسعر ","","",$U$37," جنية مصرى"),""))) -> 
K68: =IFERROR(IF(G68>0,ROUND(G68*R67,2),""),"") ->  | L68: =IFERROR(IF(G68>0,ROUND(I68-K68,2),""),"") ->  | M68: =IFERROR(IF(AND(V69="",$C$127>(SUM(S67,E68)-SUM(K68))/(SUM(Q67,C68)-SUM(G68)),V68>=DATE(YEAR('-- QNB - Current Account --'!$E$3),COLUMN($L$1)+1,0)),((SUM(Q67,C68)-SUM(G68))*$C$127)-((SUM(Q67,C68)-SUM(G68))*(R67)),""),"") ->  | O68: =IF(H68>0,ROUND(H68-R67,2),"") ->  | Q68: =Q67+C68-G68 -> 1902 | R68: =IF(Q68>0,ROUND(S68/Q68,100),0) -> 407.4756046 | S68: =ROUND(SUM(S67,E68,M68)-SUM(K68),100) -> 775018.6 | U68: =IF(C68>0,CONCATENATE("شراء ","","",C68," وثيقة"),IF(G68>0,CONCATENATE("إسترداد ","","",G68," وثيقة"),IF(V68=DATE(YEAR('-- QNB - Current Account --'!$E$3),COLUMN($L$1)+1,0),CONCATENATE("إعادة تقييم رصيد الوثائق بسعر ","","",$U$37," جنية مصرى"),""))) -> 
A69: =IF(V69>0,ROW()-5,"") ->  | E69: =IF(C69>0,ROUND(C69*D69,2),"") ->  | I69: =IF(G69>0,ROUND(G69*H69,2),"") ->  | M69: =IFERROR(IF(AND(V70="",$C$127>(SUM(S68,E69)-SUM(K69))/(SUM(Q68,C69)-SUM(G69)),V69>=DATE(YEAR('-- QNB - Current Account --'!$E$3),COLUMN($L$1)+1,0)),((SUM(Q68,C69)-SUM(G69))*$C$127)-((SUM(Q68,C69)-SUM(G69))*(R68)),""),"") ->  | Q69: 1902 | R69: 407.4756046 | S69: 775018.6 | U69: =IF(C69>0,CONCATENATE("شراء ","","",C69," وثيقة"),IF(G69>0,CONCATENATE("إسترداد ","","",G69," وثيقة"),IF(V69=DATE(YEAR('-- QNB - Current Account --'!$E$3),COLUMN($L$1)+1,0),CONCATENATE("إعادة تقييم رصيد الوثائق بسعر ","","",$U$37," جنية مصرى"),""))) -> 
M70: =IFERROR(IF(AND(V71="",$C$127>(SUM(S69,E70)-SUM(K70))/(SUM(Q69,C70)-SUM(G70)),V70>=DATE(YEAR('-- QNB - Current Account --'!$E$3),COLUMN($L$1)+1,0)),((SUM(Q69,C70)-SUM(G70))*$C$127)-((SUM(Q69,C70)-SUM(G70))*(R69)),""),"") ->  | Q70: 1902 | R70: 407.4756046 | S70: 775018.6 | U70: =IF(C70>0,CONCATENATE("شراء ","","",C70," وثيقة"),IF(G70>0,CONCATENATE("إسترداد ","","",G70," وثيقة"),IF(V70=DATE(YEAR('-- QNB - Current Account --'!$E$3),COLUMN($L$1)+1,0),CONCATENATE("إعادة تقييم رصيد الوثائق بسعر ","","",$U$37," جنية مصرى"),""))) ->  | X70: =IF($V70="","",IFERROR(IF(MONTH($V70)=MONTH($V69),$X69+1,1),1)) -> 
M71: =IFERROR(IF(AND(V72="",$C$127>(SUM(S70,E71)-SUM(K71))/(SUM(Q70,C71)-SUM(G71)),V71>=DATE(YEAR('-- QNB - Current Account --'!$E$3),COLUMN($L$1)+1,0)),((SUM(Q70,C71)-SUM(G71))*$C$127)-((SUM(Q70,C71)-SUM(G71))*(R70)),""),"") ->  | Q71: 1902 | R71: 407.4756046 | S71: 775018.6 | U71: =IF(C71>0,CONCATENATE("شراء ","","",C71," وثيقة"),IF(G71>0,CONCATENATE("إسترداد ","","",G71," وثيقة"),IF(V71=DATE(YEAR('-- QNB - Current Account --'!$E$3),COLUMN($L$1)+1,0),CONCATENATE("إعادة تقييم رصيد الوثائق بسعر ","","",$U$37," جنية مصرى"),""))) -> 
M72: =IFERROR(IF(AND(V73="",$C$127>(SUM(S71,E72)-SUM(K72))/(SUM(Q71,C72)-SUM(G72)),V72>=DATE(YEAR('-- QNB - Current Account --'!$E$3),COLUMN($L$1)+1,0)),((SUM(Q71,C72)-SUM(G72))*$C$127)-((SUM(Q71,C72)-SUM(G72))*(R71)),""),"") ->  | Q72: 1902 | R72: 407.4756046 | S72: 775018.6 | U72: =IF(C72>0,CONCATENATE("شراء ","","",C72," وثيقة"),IF(G72>0,CONCATENATE("إسترداد ","","",G72," وثيقة"),IF(V72=DATE(YEAR('-- QNB - Current Account --'!$E$3),COLUMN($L$1)+1,0),CONCATENATE("إعادة تقييم رصيد الوثائق بسعر ","","",$U$37," جنية مصرى"),""))) -> 
M73: =IFERROR(IF(AND(V74="",$C$127>(SUM(S72,E73)-SUM(K73))/(SUM(Q72,C73)-SUM(G73)),V73>=DATE(YEAR('-- QNB - Current Account --'!$E$3),COLUMN($L$1)+1,0)),((SUM(Q72,C73)-SUM(G73))*$C$127)-((SUM(Q72,C73)-SUM(G73))*(R72)),""),"") ->  | Q73: 1902 | R73: 407.4756046 | S73: 775018.6 | U73: =IF(C73>0,CONCATENATE("شراء ","","",C73," وثيقة"),IF(G73>0,CONCATENATE("إسترداد ","","",G73," وثيقة"),IF(V73=DATE(YEAR('-- QNB - Current Account --'!$E$3),COLUMN($L$1)+1,0),CONCATENATE("إعادة تقييم رصيد الوثائق بسعر ","","",$U$37," جنية مصرى"),""))) -> 
M74: =IFERROR(IF(AND(V75="",$C$127>(SUM(S73,E74)-SUM(K74))/(SUM(Q73,C74)-SUM(G74)),V74>=DATE(YEAR('-- QNB - Current Account --'!$E$3),COLUMN($L$1)+1,0)),((SUM(Q73,C74)-SUM(G74))*$C$127)-((SUM(Q73,C74)-SUM(G74))*(R73)),""),"") ->  | Q74: 1902 | R74: 407.4756046 | S74: 775018.6 | U74: =IF(C74>0,CONCATENATE("شراء ","","",C74," وثيقة"),IF(G74>0,CONCATENATE("إسترداد ","","",G74," وثيقة"),IF(V74=DATE(YEAR('-- QNB - Current Account --'!$E$3),COLUMN($L$1)+1,0),CONCATENATE("إعادة تقييم رصيد الوثائق بسعر ","","",$U$37," جنية مصرى"),""))) ->  | X74: =IF($V74="","",IFERROR(IF(MONTH($V74)=MONTH($V73),$X73+1,1),1)) -> 
M75: =IFERROR(IF(AND(V76="",$C$127>(SUM(S74,E75)-SUM(K75))/(SUM(Q74,C75)-SUM(G75)),V75>=DATE(YEAR('-- QNB - Current Account --'!$E$3),COLUMN($L$1)+1,0)),((SUM(Q74,C75)-SUM(G75))*$C$127)-((SUM(Q74,C75)-SUM(G75))*(R74)),""),"") ->  | Q75: 1902 | R75: 407.4756046 | S75: 775018.6 | U75: =IF(C75>0,CONCATENATE("شراء ","","",C75," وثيقة"),IF(G75>0,CONCATENATE("إسترداد ","","",G75," وثيقة"),IF(V75=DATE(YEAR('-- QNB - Current Account --'!$E$3),COLUMN($L$1)+1,0),CONCATENATE("إعادة تقييم رصيد الوثائق بسعر ","","",$U$37," جنية مصرى"),""))) -> 
M76: =IFERROR(IF(AND(V77="",$C$127>(SUM(S75,E76)-SUM(K76))/(SUM(Q75,C76)-SUM(G76)),V76>=DATE(YEAR('-- QNB - Current Account --'!$E$3),COLUMN($L$1)+1,0)),((SUM(Q75,C76)-SUM(G76))*$C$127)-((SUM(Q75,C76)-SUM(G76))*(R75)),""),"") ->  | Q76: 1902 | R76: 407.4756046 | S76: 775018.6 | U76: =IF(C76>0,CONCATENATE("شراء ","","",C76," وثيقة"),IF(G76>0,CONCATENATE("إسترداد ","","",G76," وثيقة"),IF(V76=DATE(YEAR('-- QNB - Current Account --'!$E$3),COLUMN($L$1)+1,0),CONCATENATE("إعادة تقييم رصيد الوثائق بسعر ","","",$U$37," جنية مصرى"),""))) -> 
I77: =IF(G77>0,ROUND(G77*H77,2),"") ->  | M77: =IFERROR(IF(AND(V78="",$C$127>(SUM(S76,E77)-SUM(K77))/(SUM(Q76,C77)-SUM(G77)),V77>=DATE(YEAR('-- QNB - Current Account --'!$E$3),COLUMN($L$1)+1,0)),((SUM(Q76,C77)-SUM(G77))*$C$127)-((SUM(Q76,C77)-SUM(G77))*(R76)),""),"") ->  | Q77: 1902 | R77: 407.4756046 | S77: 775018.6 | U77: =IF(C77>0,CONCATENATE("شراء ","","",C77," وثيقة"),IF(G77>0,CONCATENATE("إسترداد ","","",G77," وثيقة"),IF(V77=DATE(YEAR('-- QNB - Current Account --'!$E$3),COLUMN($L$1)+1,0),CONCATENATE("إعادة تقييم رصيد الوثائق بسعر ","","",$U$37," جنية مصرى"),""))) -> 
M78: =IFERROR(IF(AND(V79="",$C$127>(SUM(S77,E78)-SUM(K78))/(SUM(Q77,C78)-SUM(G78)),V78>=DATE(YEAR('-- QNB - Current Account --'!$E$3),COLUMN($L$1)+1,0)),((SUM(Q77,C78)-SUM(G78))*$C$127)-((SUM(Q77,C78)-SUM(G78))*(R77)),""),"") ->  | Q78: 1902 | R78: 407.4756046 | S78: 775018.6 | U78: =IF(C78>0,CONCATENATE("شراء ","","",C78," وثيقة"),IF(G78>0,CONCATENATE("إسترداد ","","",G78," وثيقة"),IF(V78=DATE(YEAR('-- QNB - Current Account --'!$E$3),COLUMN($L$1)+1,0),CONCATENATE("إعادة تقييم رصيد الوثائق بسعر ","","",$U$37," جنية مصرى"),""))) -> 
K79: =IFERROR(IF(G79>0,ROUND(G79*R78,2),""),"") ->  | L79: =IFERROR(IF(G79>0,ROUND(I79-K79,2),""),"") ->  | M79: =IFERROR(IF(AND(V80="",$C$127>(SUM(S78,E79)-SUM(K79))/(SUM(Q78,C79)-SUM(G79)),V79>=DATE(YEAR('-- QNB - Current Account --'!$E$3),COLUMN($L$1)+1,0)),((SUM(Q78,C79)-SUM(G79))*$C$127)-((SUM(Q78,C79)-SUM(G79))*(R78)),""),"") ->  | O79: =IF(H79>0,ROUND(H79-R78,2),"") ->  | Q79: =Q78+C79-G79 -> 1902 | R79: =IF(Q79>0,ROUND(S79/Q79,100),0) -> 407.4756046 | S79: =ROUND(SUM(S78,E79,M79)-SUM(K79),100) -> 775018.6 | U79: =IF(C79>0,CONCATENATE("شراء ","","",C79," وثيقة"),IF(G79>0,CONCATENATE("إسترداد ","","",G79," وثيقة"),IF(V79=DATE(YEAR('-- QNB - Current Account --'!$E$3),COLUMN($L$1)+1,0),CONCATENATE("إعادة تقييم رصيد الوثائق بسعر ","","",$U$37," جنية مصرى"),""))) -> 
M80: =IFERROR(IF(AND(V81="",$C$127>(SUM(S79,E80)-SUM(K80))/(SUM(Q79,C80)-SUM(G80)),V80>=DATE(YEAR('-- QNB - Current Account --'!$E$3),COLUMN($L$1)+1,0)),((SUM(Q79,C80)-SUM(G80))*$C$127)-((SUM(Q79,C80)-SUM(G80))*(R79)),""),"") ->  | Q80: 1902 | R80: 407.4756046 | S80: 775018.6 | U80: =IF(C80>0,CONCATENATE("شراء ","","",C80," وثيقة"),IF(G80>0,CONCATENATE("إسترداد ","","",G80," وثيقة"),IF(V80=DATE(YEAR('-- QNB - Current Account --'!$E$3),COLUMN($L$1)+1,0),CONCATENATE("إعادة تقييم رصيد الوثائق بسعر ","","",$U$37," جنية مصرى"),""))) -> 
M81: =IFERROR(IF(AND(V82="",$C$127>(SUM(S80,E81)-SUM(K81))/(SUM(Q80,C81)-SUM(G81)),V81>=DATE(YEAR('-- QNB - Current Account --'!$E$3),COLUMN($L$1)+1,0)),((SUM(Q80,C81)-SUM(G81))*$C$127)-((SUM(Q80,C81)-SUM(G81))*(R80)),""),"") ->  | Q81: 1902 | R81: 407.4756046 | S81: 775018.6 | U81: =IF(C81>0,CONCATENATE("شراء ","","",C81," وثيقة"),IF(G81>0,CONCATENATE("إسترداد ","","",G81," وثيقة"),IF(V81=DATE(YEAR('-- QNB - Current Account --'!$E$3),COLUMN($L$1)+1,0),CONCATENATE("إعادة تقييم رصيد الوثائق بسعر ","","",$U$37," جنية مصرى"),""))) -> 
M82: =IFERROR(IF(AND(V83="",$C$127>(SUM(S81,E82)-SUM(K82))/(SUM(Q81,C82)-SUM(G82)),V82>=DATE(YEAR('-- QNB - Current Account --'!$E$3),COLUMN($L$1)+1,0)),((SUM(Q81,C82)-SUM(G82))*$C$127)-((SUM(Q81,C82)-SUM(G82))*(R81)),""),"") ->  | Q82: 1902 | R82: 407.4756046 | S82: 775018.6 | U82: =IF(C82>0,CONCATENATE("شراء ","","",C82," وثيقة"),IF(G82>0,CONCATENATE("إسترداد ","","",G82," وثيقة"),IF(V82=DATE(YEAR('-- QNB - Current Account --'!$E$3),COLUMN($L$1)+1,0),CONCATENATE("إعادة تقييم رصيد الوثائق بسعر ","","",$U$37," جنية مصرى"),""))) -> 
M83: =IFERROR(IF(AND(V84="",$C$127>(SUM(S82,E83)-SUM(K83))/(SUM(Q82,C83)-SUM(G83)),V83>=DATE(YEAR('-- QNB - Current Account --'!$E$3),COLUMN($L$1)+1,0)),((SUM(Q82,C83)-SUM(G83))*$C$127)-((SUM(Q82,C83)-SUM(G83))*(R82)),""),"") ->  | Q83: 1902 | R83: 407.4756046 | S83: 775018.6 | U83: =IF(C83>0,CONCATENATE("شراء ","","",C83," وثيقة"),IF(G83>0,CONCATENATE("إسترداد ","","",G83," وثيقة"),IF(V83=DATE(YEAR('-- QNB - Current Account --'!$E$3),COLUMN($L$1)+1,0),CONCATENATE("إعادة تقييم رصيد الوثائق بسعر ","","",$U$37," جنية مصرى"),""))) -> 
M84: =IFERROR(IF(AND(V85="",$C$127>(SUM(S83,E84)-SUM(K84))/(SUM(Q83,C84)-SUM(G84)),V84>=DATE(YEAR('-- QNB - Current Account --'!$E$3),COLUMN($L$1)+1,0)),((SUM(Q83,C84)-SUM(G84))*$C$127)-((SUM(Q83,C84)-SUM(G84))*(R83)),""),"") ->  | Q84: 1902 | R84: 407.4756046 | S84: 775018.6 | U84: =IF(C84>0,CONCATENATE("شراء ","","",C84," وثيقة"),IF(G84>0,CONCATENATE("إسترداد ","","",G84," وثيقة"),IF(V84=DATE(YEAR('-- QNB - Current Account --'!$E$3),COLUMN($L$1)+1,0),CONCATENATE("إعادة تقييم رصيد الوثائق بسعر ","","",$U$37," جنية مصرى"),""))) -> 
M85: =IFERROR(IF(AND(V86="",$C$127>(SUM(S84,E85)-SUM(K85))/(SUM(Q84,C85)-SUM(G85)),V85>=DATE(YEAR('-- QNB - Current Account --'!$E$3),COLUMN($L$1)+1,0)),((SUM(Q84,C85)-SUM(G85))*$C$127)-((SUM(Q84,C85)-SUM(G85))*(R84)),""),"") ->  | Q85: 1902 | R85: 407.4756046 | S85: 775018.6 | U85: =IF(C85>0,CONCATENATE("شراء ","","",C85," وثيقة"),IF(G85>0,CONCATENATE("إسترداد ","","",G85," وثيقة"),IF(V85=DATE(YEAR('-- QNB - Current Account --'!$E$3),COLUMN($L$1)+1,0),CONCATENATE("إعادة تقييم رصيد الوثائق بسعر ","","",$U$37," جنية مصرى"),""))) -> 
M86: =IFERROR(IF(AND(V87="",$C$127>(SUM(S85,E86)-SUM(K86))/(SUM(Q85,C86)-SUM(G86)),V86>=DATE(YEAR('-- QNB - Current Account --'!$E$3),COLUMN($L$1)+1,0)),((SUM(Q85,C86)-SUM(G86))*$C$127)-((SUM(Q85,C86)-SUM(G86))*(R85)),""),"") ->  | Q86: 1902 | R86: 407.4756046 | S86: 775018.6 | U86: =IF(C86>0,CONCATENATE("شراء ","","",C86," وثيقة"),IF(G86>0,CONCATENATE("إسترداد ","","",G86," وثيقة"),IF(V86=DATE(YEAR('-- QNB - Current Account --'!$E$3),COLUMN($L$1)+1,0),CONCATENATE("إعادة تقييم رصيد الوثائق بسعر ","","",$U$37," جنية مصرى"),""))) -> 
M87: =IFERROR(IF(AND(V88="",$C$127>(SUM(S86,E87)-SUM(K87))/(SUM(Q86,C87)-SUM(G87)),V87>=DATE(YEAR('-- QNB - Current Account --'!$E$3),COLUMN($L$1)+1,0)),((SUM(Q86,C87)-SUM(G87))*$C$127)-((SUM(Q86,C87)-SUM(G87))*(R86)),""),"") ->  | Q87: 1902 | R87: 407.4756046 | S87: 775018.6 | U87: =IF(C87>0,CONCATENATE("شراء ","","",C87," وثيقة"),IF(G87>0,CONCATENATE("إسترداد ","","",G87," وثيقة"),IF(V87=DATE(YEAR('-- QNB - Current Account --'!$E$3),COLUMN($L$1)+1,0),CONCATENATE("إعادة تقييم رصيد الوثائق بسعر ","","",$U$37," جنية مصرى"),""))) -> 
M88: =IFERROR(IF(AND(V89="",$C$127>(SUM(S87,E88)-SUM(K88))/(SUM(Q87,C88)-SUM(G88)),V88>=DATE(YEAR('-- QNB - Current Account --'!$E$3),COLUMN($L$1)+1,0)),((SUM(Q87,C88)-SUM(G88))*$C$127)-((SUM(Q87,C88)-SUM(G88))*(R87)),""),"") ->  | Q88: 1902 | R88: 407.4756046 | S88: 775018.6 | U88: =IF(C88>0,CONCATENATE("شراء ","","",C88," وثيقة"),IF(G88>0,CONCATENATE("إسترداد ","","",G88," وثيقة"),IF(V88=DATE(YEAR('-- QNB - Current Account --'!$E$3),COLUMN($L$1)+1,0),CONCATENATE("إعادة تقييم رصيد الوثائق بسعر ","","",$U$37," جنية مصرى"),""))) -> 
M89: =IFERROR(IF(AND(V90="",$C$127>(SUM(S88,E89)-SUM(K89))/(SUM(Q88,C89)-SUM(G89)),V89>=DATE(YEAR('-- QNB - Current Account --'!$E$3),COLUMN($L$1)+1,0)),((SUM(Q88,C89)-SUM(G89))*$C$127)-((SUM(Q88,C89)-SUM(G89))*(R88)),""),"") ->  | Q89: 1902 | R89: 407.4756046 | S89: 775018.6 | U89: =IF(C89>0,CONCATENATE("شراء ","","",C89," وثيقة"),IF(G89>0,CONCATENATE("إسترداد ","","",G89," وثيقة"),IF(V89=DATE(YEAR('-- QNB - Current Account --'!$E$3),COLUMN($L$1)+1,0),CONCATENATE("إعادة تقييم رصيد الوثائق بسعر ","","",$U$37," جنية مصرى"),""))) -> 
M90: =IFERROR(IF(AND(V91="",$C$127>(SUM(S89,E90)-SUM(K90))/(SUM(Q89,C90)-SUM(G90)),V90>=DATE(YEAR('-- QNB - Current Account --'!$E$3),COLUMN($L$1)+1,0)),((SUM(Q89,C90)-SUM(G90))*$C$127)-((SUM(Q89,C90)-SUM(G90))*(R89)),""),"") ->  | Q90: 1902 | R90: 407.4756046 | S90: 775018.6 | U90: =IF(C90>0,CONCATENATE("شراء ","","",C90," وثيقة"),IF(G90>0,CONCATENATE("إسترداد ","","",G90," وثيقة"),IF(V90=DATE(YEAR('-- QNB - Current Account --'!$E$3),COLUMN($L$1)+1,0),CONCATENATE("إعادة تقييم رصيد الوثائق بسعر ","","",$U$37," جنية مصرى"),""))) -> 
M91: =IFERROR(IF(AND(V92="",$C$127>(SUM(S90,E91)-SUM(K91))/(SUM(Q90,C91)-SUM(G91)),V91>=DATE(YEAR('-- QNB - Current Account --'!$E$3),COLUMN($L$1)+1,0)),((SUM(Q90,C91)-SUM(G91))*$C$127)-((SUM(Q90,C91)-SUM(G91))*(R90)),""),"") ->  | Q91: 1902 | R91: 407.4756046 | S91: 775018.6 | U91: =IF(C91>0,CONCATENATE("شراء ","","",C91," وثيقة"),IF(G91>0,CONCATENATE("إسترداد ","","",G91," وثيقة"),IF(V91=DATE(YEAR('-- QNB - Current Account --'!$E$3),COLUMN($L$1)+1,0),CONCATENATE("إعادة تقييم رصيد الوثائق بسعر ","","",$U$37," جنية مصرى"),""))) -> 
M92: =IFERROR(IF(AND(V93="",$C$127>(SUM(S91,E92)-SUM(K92))/(SUM(Q91,C92)-SUM(G92)),V92>=DATE(YEAR('-- QNB - Current Account --'!$E$3),COLUMN($L$1)+1,0)),((SUM(Q91,C92)-SUM(G92))*$C$127)-((SUM(Q91,C92)-SUM(G92))*(R91)),""),"") ->  | Q92: 1902 | R92: 407.4756046 | S92: 775018.6 | U92: =IF(C92>0,CONCATENATE("شراء ","","",C92," وثيقة"),IF(G92>0,CONCATENATE("إسترداد ","","",G92," وثيقة"),IF(V92=DATE(YEAR('-- QNB - Current Account --'!$E$3),COLUMN($L$1)+1,0),CONCATENATE("إعادة تقييم رصيد الوثائق بسعر ","","",$U$37," جنية مصرى"),""))) -> 
M93: =IFERROR(IF(AND(V94="",$C$127>(SUM(S92,E93)-SUM(K93))/(SUM(Q92,C93)-SUM(G93)),V93>=DATE(YEAR('-- QNB - Current Account --'!$E$3),COLUMN($L$1)+1,0)),((SUM(Q92,C93)-SUM(G93))*$C$127)-((SUM(Q92,C93)-SUM(G93))*(R92)),""),"") ->  | Q93: 1902 | R93: 407.4756046 | S93: 775018.6 | U93: =IF(C93>0,CONCATENATE("شراء ","","",C93," وثيقة"),IF(G93>0,CONCATENATE("إسترداد ","","",G93," وثيقة"),IF(V93=DATE(YEAR('-- QNB - Current Account --'!$E$3),COLUMN($L$1)+1,0),CONCATENATE("إعادة تقييم رصيد الوثائق بسعر ","","",$U$37," جنية مصرى"),""))) -> 
M94: =IFERROR(IF(AND(V95="",$C$127>(SUM(S93,E94)-SUM(K94))/(SUM(Q93,C94)-SUM(G94)),V94>=DATE(YEAR('-- QNB - Current Account --'!$E$3),COLUMN($L$1)+1,0)),((SUM(Q93,C94)-SUM(G94))*$C$127)-((SUM(Q93,C94)-SUM(G94))*(R93)),""),"") ->  | Q94: 1902 | R94: 407.4756046 | S94: 775018.6 | U94: =IF(C94>0,CONCATENATE("شراء ","","",C94," وثيقة"),IF(G94>0,CONCATENATE("إسترداد ","","",G94," وثيقة"),IF(V94=DATE(YEAR('-- QNB - Current Account --'!$E$3),COLUMN($L$1)+1,0),CONCATENATE("إعادة تقييم رصيد الوثائق بسعر ","","",$U$37," جنية مصرى"),""))) -> 
M95: =IFERROR(IF(AND(V96="",$C$127>(SUM(S94,E95)-SUM(K95))/(SUM(Q94,C95)-SUM(G95)),V95>=DATE(YEAR('-- QNB - Current Account --'!$E$3),COLUMN($L$1)+1,0)),((SUM(Q94,C95)-SUM(G95))*$C$127)-((SUM(Q94,C95)-SUM(G95))*(R94)),""),"") ->  | Q95: 1902 | R95: 407.4756046 | S95: 775018.6 | U95: =IF(C95>0,CONCATENATE("شراء ","","",C95," وثيقة"),IF(G95>0,CONCATENATE("إسترداد ","","",G95," وثيقة"),IF(V95=DATE(YEAR('-- QNB - Current Account --'!$E$3),COLUMN($L$1)+1,0),CONCATENATE("إعادة تقييم رصيد الوثائق بسعر ","","",$U$37," جنية مصرى"),""))) -> 
M96: =IFERROR(IF(AND(V97="",$C$127>(SUM(S95,E96)-SUM(K96))/(SUM(Q95,C96)-SUM(G96)),V96>=DATE(YEAR('-- QNB - Current Account --'!$E$3),COLUMN($L$1)+1,0)),((SUM(Q95,C96)-SUM(G96))*$C$127)-((SUM(Q95,C96)-SUM(G96))*(R95)),""),"") ->  | Q96: 1902 | R96: 407.4756046 | S96: 775018.6 | U96: =IF(C96>0,CONCATENATE("شراء ","","",C96," وثيقة"),IF(G96>0,CONCATENATE("إسترداد ","","",G96," وثيقة"),IF(V96=DATE(YEAR('-- QNB - Current Account --'!$E$3),COLUMN($L$1)+1,0),CONCATENATE("إعادة تقييم رصيد الوثائق بسعر ","","",$U$37," جنية مصرى"),""))) -> 
M97: =IFERROR(IF(AND(V98="",$C$127>(SUM(S96,E97)-SUM(K97))/(SUM(Q96,C97)-SUM(G97)),V97>=DATE(YEAR('-- QNB - Current Account --'!$E$3),COLUMN($L$1)+1,0)),((SUM(Q96,C97)-SUM(G97))*$C$127)-((SUM(Q96,C97)-SUM(G97))*(R96)),""),"") ->  | Q97: 1902 | R97: 407.4756046 | S97: 775018.6 | U97: =IF(C97>0,CONCATENATE("شراء ","","",C97," وثيقة"),IF(G97>0,CONCATENATE("إسترداد ","","",G97," وثيقة"),IF(V97=DATE(YEAR('-- QNB - Current Account --'!$E$3),COLUMN($L$1)+1,0),CONCATENATE("إعادة تقييم رصيد الوثائق بسعر ","","",$U$37," جنية مصرى"),""))) -> 
M98: =IFERROR(IF(AND(V99="",$C$127>(SUM(S97,E98)-SUM(K98))/(SUM(Q97,C98)-SUM(G98)),V98>=DATE(YEAR('-- QNB - Current Account --'!$E$3),COLUMN($L$1)+1,0)),((SUM(Q97,C98)-SUM(G98))*$C$127)-((SUM(Q97,C98)-SUM(G98))*(R97)),""),"") ->  | Q98: 1902 | R98: 407.4756046 | S98: 775018.6 | U98: =IF(C98>0,CONCATENATE("شراء ","","",C98," وثيقة"),IF(G98>0,CONCATENATE("إسترداد ","","",G98," وثيقة"),IF(V98=DATE(YEAR('-- QNB - Current Account --'!$E$3),COLUMN($L$1)+1,0),CONCATENATE("إعادة تقييم رصيد الوثائق بسعر ","","",$U$37," جنية مصرى"),""))) -> 
M99: =IFERROR(IF(AND(V100="",$C$127>(SUM(S98,E99)-SUM(K99))/(SUM(Q98,C99)-SUM(G99)),V99>=DATE(YEAR('-- QNB - Current Account --'!$E$3),COLUMN($L$1)+1,0)),((SUM(Q98,C99)-SUM(G99))*$C$127)-((SUM(Q98,C99)-SUM(G99))*(R98)),""),"") ->  | Q99: 1902 | R99: 407.4756046 | S99: 775018.6 | U99: =IF(C99>0,CONCATENATE("شراء ","","",C99," وثيقة"),IF(G99>0,CONCATENATE("إسترداد ","","",G99," وثيقة"),IF(V99=DATE(YEAR('-- QNB - Current Account --'!$E$3),COLUMN($L$1)+1,0),CONCATENATE("إعادة تقييم رصيد الوثائق بسعر ","","",$U$37," جنية مصرى"),""))) -> 
M100: =IFERROR(IF(AND(V101="",$C$127>(SUM(S99,E100)-SUM(K100))/(SUM(Q99,C100)-SUM(G100)),V100>=DATE(YEAR('-- QNB - Current Account --'!$E$3),COLUMN($L$1)+1,0)),((SUM(Q99,C100)-SUM(G100))*$C$127)-((SUM(Q99,C100)-SUM(G100))*(R99)),""),"") ->  | Q100: 1902 | R100: 407.4756046 | S100: 775018.6 | U100: =IF(C100>0,CONCATENATE("شراء ","","",C100," وثيقة"),IF(G100>0,CONCATENATE("إسترداد ","","",G100," وثيقة"),IF(V100=DATE(YEAR('-- QNB - Current Account --'!$E$3),COLUMN($L$1)+1,0),CONCATENATE("إعادة تقييم رصيد الوثائق بسعر ","","",$U$37," جنية مصرى"),""))) -> 
M101: =IFERROR(IF(AND(V102="",$C$127>(SUM(S100,E101)-SUM(K101))/(SUM(Q100,C101)-SUM(G101)),V101>=DATE(YEAR('-- QNB - Current Account --'!$E$3),COLUMN($L$1)+1,0)),((SUM(Q100,C101)-SUM(G101))*$C$127)-((SUM(Q100,C101)-SUM(G101))*(R100)),""),"") ->  | Q101: 1902 | R101: 407.4756046 | S101: 775018.6 | U101: =IF(C101>0,CONCATENATE("شراء ","","",C101," وثيقة"),IF(G101>0,CONCATENATE("إسترداد ","","",G101," وثيقة"),IF(V101=DATE(YEAR('-- QNB - Current Account --'!$E$3),COLUMN($L$1)+1,0),CONCATENATE("إعادة تقييم رصيد الوثائق بسعر ","","",$U$37," جنية مصرى"),""))) -> 
M102: =IFERROR(IF(AND(V103="",$C$127>(SUM(S101,E102)-SUM(K102))/(SUM(Q101,C102)-SUM(G102)),V102>=DATE(YEAR('-- QNB - Current Account --'!$E$3),COLUMN($L$1)+1,0)),((SUM(Q101,C102)-SUM(G102))*$C$127)-((SUM(Q101,C102)-SUM(G102))*(R101)),""),"") ->  | Q102: 1902 | R102: 407.4756046 | S102: 775018.6 | U102: =IF(C102>0,CONCATENATE("شراء ","","",C102," وثيقة"),IF(G102>0,CONCATENATE("إسترداد ","","",G102," وثيقة"),IF(V102=DATE(YEAR('-- QNB - Current Account --'!$E$3),COLUMN($L$1)+1,0),CONCATENATE("إعادة تقييم رصيد الوثائق بسعر ","","",$U$37," جنية مصرى"),""))) -> 
M103: =IFERROR(IF(AND(V104="",$C$127>(SUM(S102,E103)-SUM(K103))/(SUM(Q102,C103)-SUM(G103)),V103>=DATE(YEAR('-- QNB - Current Account --'!$E$3),COLUMN($L$1)+1,0)),((SUM(Q102,C103)-SUM(G103))*$C$127)-((SUM(Q102,C103)-SUM(G103))*(R102)),""),"") ->  | Q103: 1902 | R103: 407.4756046 | S103: 775018.6 | U103: =IF(C103>0,CONCATENATE("شراء ","","",C103," وثيقة"),IF(G103>0,CONCATENATE("إسترداد ","","",G103," وثيقة"),IF(V103=DATE(YEAR('-- QNB - Current Account --'!$E$3),COLUMN($L$1)+1,0),CONCATENATE("إعادة تقييم رصيد الوثائق بسعر ","","",$U$37," جنية مصرى"),""))) -> 
M104: =IFERROR(IF(AND(V105="",$C$127>(SUM(S103,E104)-SUM(K104))/(SUM(Q103,C104)-SUM(G104)),V104>=DATE(YEAR('-- QNB - Current Account --'!$E$3),COLUMN($L$1)+1,0)),((SUM(Q103,C104)-SUM(G104))*$C$127)-((SUM(Q103,C104)-SUM(G104))*(R103)),""),"") ->  | Q104: 1902 | R104: 407.4756046 | S104: 775018.6 | U104: =IF(C104>0,CONCATENATE("شراء ","","",C104," وثيقة"),IF(G104>0,CONCATENATE("إسترداد ","","",G104," وثيقة"),IF(V104=DATE(YEAR('-- QNB - Current Account --'!$E$3),COLUMN($L$1)+1,0),CONCATENATE("إعادة تقييم رصيد الوثائق بسعر ","","",$U$37," جنية مصرى"),""))) -> 
M105: =IFERROR(IF(AND(V106="",$C$127>(SUM(S104,E105)-SUM(K105))/(SUM(Q104,C105)-SUM(G105)),V105>=DATE(YEAR('-- QNB - Current Account --'!$E$3),COLUMN($L$1)+1,0)),((SUM(Q104,C105)-SUM(G105))*$C$127)-((SUM(Q104,C105)-SUM(G105))*(R104)),""),"") ->  | Q105: 1902 | R105: 407.4756046 | S105: 775018.6 | U105: =IF(C105>0,CONCATENATE("شراء ","","",C105," وثيقة"),IF(G105>0,CONCATENATE("إسترداد ","","",G105," وثيقة"),IF(V105=DATE(YEAR('-- QNB - Current Account --'!$E$3),COLUMN($L$1)+1,0),CONCATENATE("إعادة تقييم رصيد الوثائق بسعر ","","",$U$37," جنية مصرى"),""))) -> 
M106: =IFERROR(IF(AND(V107="",$C$127>(SUM(S105,E106)-SUM(K106))/(SUM(Q105,C106)-SUM(G106)),V106>=DATE(YEAR('-- QNB - Current Account --'!$E$3),COLUMN($L$1)+1,0)),((SUM(Q105,C106)-SUM(G106))*$C$127)-((SUM(Q105,C106)-SUM(G106))*(R105)),""),"") ->  | Q106: 1902 | R106: 407.4756046 | S106: 775018.6 | U106: =IF(C106>0,CONCATENATE("شراء ","","",C106," وثيقة"),IF(G106>0,CONCATENATE("إسترداد ","","",G106," وثيقة"),IF(V106=DATE(YEAR('-- QNB - Current Account --'!$E$3),COLUMN($L$1)+1,0),CONCATENATE("إعادة تقييم رصيد الوثائق بسعر ","","",$U$37," جنية مصرى"),""))) -> 
M107: =IFERROR(IF(AND(V108="",$C$127>(SUM(S106,E107)-SUM(K107))/(SUM(Q106,C107)-SUM(G107)),V107>=DATE(YEAR('-- QNB - Current Account --'!$E$3),COLUMN($L$1)+1,0)),((SUM(Q106,C107)-SUM(G107))*$C$127)-((SUM(Q106,C107)-SUM(G107))*(R106)),""),"") ->  | Q107: 1902 | R107: 407.4756046 | S107: =ROUND(SUM(S106,E107,M107)-SUM(K107),2) -> 775018.6 | U107: =IF(C107>0,CONCATENATE("شراء ","","",C107," وثيقة"),IF(G107>0,CONCATENATE("إسترداد ","","",G107," وثيقة"),IF(V107=DATE(YEAR('-- QNB - Current Account --'!$E$3),COLUMN($L$1)+1,0),CONCATENATE("إعادة تقييم رصيد الوثائق بسعر ","","",$U$37," جنية مصرى"),""))) -> 
M108: =IFERROR(IF(AND(V109="",$C$127>(SUM(S107,E108)-SUM(K108))/(SUM(Q107,C108)-SUM(G108)),V108>=DATE(YEAR('-- QNB - Current Account --'!$E$3),COLUMN($L$1)+1,0)),((SUM(Q107,C108)-SUM(G108))*$C$127)-((SUM(Q107,C108)-SUM(G108))*(R107)),""),"") ->  | Q108: 1902 | R108: 407.4756046 | S108: 775018.6 | U108: =IF(C108>0,CONCATENATE("شراء ","","",C108," وثيقة"),IF(G108>0,CONCATENATE("إسترداد ","","",G108," وثيقة"),IF(V108=DATE(YEAR('-- QNB - Current Account --'!$E$3),COLUMN($L$1)+1,0),CONCATENATE("إعادة تقييم رصيد الوثائق بسعر ","","",$U$37," جنية مصرى"),""))) -> 
M109: =IFERROR(IF(AND(V110="",$C$127>(SUM(S108,E109)-SUM(K109))/(SUM(Q108,C109)-SUM(G109)),V109>=DATE(YEAR('-- QNB - Current Account --'!$E$3),COLUMN($L$1)+1,0)),((SUM(Q108,C109)-SUM(G109))*$C$127)-((SUM(Q108,C109)-SUM(G109))*(R108)),""),"") ->  | Q109: 1902 | R109: 407.4756046 | S109: 775018.6 | U109: =IF(C109>0,CONCATENATE("شراء ","","",C109," وثيقة"),IF(G109>0,CONCATENATE("إسترداد ","","",G109," وثيقة"),IF(V109=DATE(YEAR('-- QNB - Current Account --'!$E$3),COLUMN($L$1)+1,0),CONCATENATE("إعادة تقييم رصيد الوثائق بسعر ","","",$U$37," جنية مصرى"),""))) -> 
M110: =IFERROR(IF(AND(V111="",$C$127>(SUM(S109,E110)-SUM(K110))/(SUM(Q109,C110)-SUM(G110)),V110>=DATE(YEAR('-- QNB - Current Account --'!$E$3),COLUMN($L$1)+1,0)),((SUM(Q109,C110)-SUM(G110))*$C$127)-((SUM(Q109,C110)-SUM(G110))*(R109)),""),"") ->  | Q110: 1902 | R110: 407.4756046 | S110: 775018.6 | U110: =IF(C110>0,CONCATENATE("شراء ","","",C110," وثيقة"),IF(G110>0,CONCATENATE("إسترداد ","","",G110," وثيقة"),IF(V110=DATE(YEAR('-- QNB - Current Account --'!$E$3),COLUMN($L$1)+1,0),CONCATENATE("إعادة تقييم رصيد الوثائق بسعر ","","",$U$37," جنية مصرى"),""))) -> 
M111: =IFERROR(IF(AND(V112="",$C$127>(SUM(S110,E111)-SUM(K111))/(SUM(Q110,C111)-SUM(G111)),V111>=DATE(YEAR('-- QNB - Current Account --'!$E$3),COLUMN($L$1)+1,0)),((SUM(Q110,C111)-SUM(G111))*$C$127)-((SUM(Q110,C111)-SUM(G111))*(R110)),""),"") ->  | Q111: 1902 | R111: 407.4756046 | S111: 775018.6 | U111: =IF(C111>0,CONCATENATE("شراء ","","",C111," وثيقة"),IF(G111>0,CONCATENATE("إسترداد ","","",G111," وثيقة"),IF(V111=DATE(YEAR('-- QNB - Current Account --'!$E$3),COLUMN($L$1)+1,0),CONCATENATE("إعادة تقييم رصيد الوثائق بسعر ","","",$U$37," جنية مصرى"),""))) -> 
M112: =IFERROR(IF(AND(V113="",$C$127>(SUM(S111,E112)-SUM(K112))/(SUM(Q111,C112)-SUM(G112)),V112>=DATE(YEAR('-- QNB - Current Account --'!$E$3),COLUMN($L$1)+1,0)),((SUM(Q111,C112)-SUM(G112))*$C$127)-((SUM(Q111,C112)-SUM(G112))*(R111)),""),"") ->  | Q112: 1902 | R112: 407.4756046 | S112: 775018.6 | U112: =IF(C112>0,CONCATENATE("شراء ","","",C112," وثيقة"),IF(G112>0,CONCATENATE("إسترداد ","","",G112," وثيقة"),IF(V112=DATE(YEAR('-- QNB - Current Account --'!$E$3),COLUMN($L$1)+1,0),CONCATENATE("إعادة تقييم رصيد الوثائق بسعر ","","",$U$37," جنية مصرى"),""))) -> 
M113: =IFERROR(IF(AND(V114="",$C$127>(SUM(S112,E113)-SUM(K113))/(SUM(Q112,C113)-SUM(G113)),V113>=DATE(YEAR('-- QNB - Current Account --'!$E$3),COLUMN($L$1)+1,0)),((SUM(Q112,C113)-SUM(G113))*$C$127)-((SUM(Q112,C113)-SUM(G113))*(R112)),""),"") ->  | Q113: 1902 | R113: 407.4756046 | S113: 775018.6 | U113: =IF(C113>0,CONCATENATE("شراء ","","",C113," وثيقة"),IF(G113>0,CONCATENATE("إسترداد ","","",G113," وثيقة"),IF(V113=DATE(YEAR('-- QNB - Current Account --'!$E$3),COLUMN($L$1)+1,0),CONCATENATE("إعادة تقييم رصيد الوثائق بسعر ","","",$U$37," جنية مصرى"),""))) -> 
M114: =IFERROR(IF(AND(V115="",$C$127>(SUM(S113,E114)-SUM(K114))/(SUM(Q113,C114)-SUM(G114)),V114>=DATE(YEAR('-- QNB - Current Account --'!$E$3),COLUMN($L$1)+1,0)),((SUM(Q113,C114)-SUM(G114))*$C$127)-((SUM(Q113,C114)-SUM(G114))*(R113)),""),"") ->  | Q114: 1902 | R114: 407.4756046 | S114: 775018.6 | U114: =IF(C114>0,CONCATENATE("شراء ","","",C114," وثيقة"),IF(G114>0,CONCATENATE("إسترداد ","","",G114," وثيقة"),IF(V114=DATE(YEAR('-- QNB - Current Account --'!$E$3),COLUMN($L$1)+1,0),CONCATENATE("إعادة تقييم رصيد الوثائق بسعر ","","",$U$37," جنية مصرى"),""))) -> 
K115: =IFERROR(IF(G115>0,ROUND(G115*R114,2),""),"") ->  | M115: =IFERROR(IF(AND(V116="",$C$127>(SUM(S114,E115)-SUM(K115))/(SUM(Q114,C115)-SUM(G115)),V115>=DATE(YEAR('-- QNB - Current Account --'!$E$3),COLUMN($L$1)+1,0)),((SUM(Q114,C115)-SUM(G115))*$C$127)-((SUM(Q114,C115)-SUM(G115))*(R114)),""),"") ->  | Q115: 1902 | R115: 407.4756046 | S115: 775018.6 | U115: =IF(C115>0,CONCATENATE("شراء ","","",C115," وثيقة"),IF(G115>0,CONCATENATE("إسترداد ","","",G115," وثيقة"),IF(V115=DATE(YEAR('-- QNB - Current Account --'!$E$3),COLUMN($L$1)+1,0),CONCATENATE("إعادة تقييم رصيد الوثائق بسعر ","","",$U$37," جنية مصرى"),""))) -> 
M116: =IFERROR(IF(AND(V117="",$C$127>(SUM(S115,E116)-SUM(K116))/(SUM(Q115,C116)-SUM(G116)),V116>=DATE(YEAR('-- QNB - Current Account --'!$E$3),COLUMN($L$1)+1,0)),((SUM(Q115,C116)-SUM(G116))*$C$127)-((SUM(Q115,C116)-SUM(G116))*(R115)),""),"") ->  | Q116: 1902 | R116: 407.4756046 | S116: 775018.6 | U116: =IF(C116>0,CONCATENATE("شراء ","","",C116," وثيقة"),IF(G116>0,CONCATENATE("إسترداد ","","",G116," وثيقة"),IF(V116=DATE(YEAR('-- QNB - Current Account --'!$E$3),COLUMN($L$1)+1,0),CONCATENATE("إعادة تقييم رصيد الوثائق بسعر ","","",$U$37," جنية مصرى"),""))) -> 
M117: =IFERROR(IF(AND(V118="",$C$127>(SUM(S116,E117)-SUM(K117))/(SUM(Q116,C117)-SUM(G117)),V117>=DATE(YEAR('-- QNB - Current Account --'!$E$3),COLUMN($L$1)+1,0)),((SUM(Q116,C117)-SUM(G117))*$C$127)-((SUM(Q116,C117)-SUM(G117))*(R116)),""),"") ->  | Q117: 1902 | R117: 407.4756046 | S117: 775018.6 | U117: =IF(C117>0,CONCATENATE("شراء ","","",C117," وثيقة"),IF(G117>0,CONCATENATE("إسترداد ","","",G117," وثيقة"),IF(V117=DATE(YEAR('-- QNB - Current Account --'!$E$3),COLUMN($L$1)+1,0),CONCATENATE("إعادة تقييم رصيد الوثائق بسعر ","","",$U$37," جنية مصرى"),""))) -> 
I118: =IF(G118>0,ROUND(G118*H118,2),"") ->  | M118: =IFERROR(IF(AND(V119="",$C$127>(SUM(S117,E118)-SUM(K118))/(SUM(Q117,C118)-SUM(G118)),V118>=DATE(YEAR('-- QNB - Current Account --'!$E$3),COLUMN($L$1)+1,0)),((SUM(Q117,C118)-SUM(G118))*$C$127)-((SUM(Q117,C118)-SUM(G118))*(R117)),""),"") ->  | Q118: 1902 | R118: 407.4756046 | S118: 775018.6 | U118: =IF(C118>0,CONCATENATE("شراء ","","",C118," وثيقة"),IF(G118>0,CONCATENATE("إسترداد ","","",G118," وثيقة"),IF(V118=DATE(YEAR('-- QNB - Current Account --'!$E$3),COLUMN($L$1)+1,0),CONCATENATE("إعادة تقييم رصيد الوثائق بسعر ","","",$U$37," جنية مصرى"),""))) -> 
M119: =IFERROR(IF(AND(V120="",$C$127>(SUM(S118,E119)-SUM(K119))/(SUM(Q118,C119)-SUM(G119)),V119>=DATE(YEAR('-- QNB - Current Account --'!$E$3),COLUMN($L$1)+1,0)),((SUM(Q118,C119)-SUM(G119))*$C$127)-((SUM(Q118,C119)-SUM(G119))*(R118)),""),"") ->  | Q119: 1902 | R119: 407.4756046 | S119: 775018.6 | U119: =IF(C119>0,CONCATENATE("شراء ","","",C119," وثيقة"),IF(G119>0,CONCATENATE("إسترداد ","","",G119," وثيقة"),IF(V119=DATE(YEAR('-- QNB - Current Account --'!$E$3),COLUMN($L$1)+1,0),CONCATENATE("إعادة تقييم رصيد الوثائق بسعر ","","",$U$37," جنية مصرى"),""))) -> 
M120: =IFERROR(IF(AND(V121="",$C$127>(SUM(S119,E120)-SUM(K120))/(SUM(Q119,C120)-SUM(G120)),V120>=DATE(YEAR('-- QNB - Current Account --'!$E$3),COLUMN($L$1)+1,0)),((SUM(Q119,C120)-SUM(G120))*$C$127)-((SUM(Q119,C120)-SUM(G120))*(R119)),""),"") ->  | Q120: 1902 | R120: 407.4756046 | S120: 775018.6 | U120: =IF(C120>0,CONCATENATE("شراء ","","",C120," وثيقة"),IF(G120>0,CONCATENATE("إسترداد ","","",G120," وثيقة"),IF(V120=DATE(YEAR('-- QNB - Current Account --'!$E$3),COLUMN($L$1)+1,0),CONCATENATE("إعادة تقييم رصيد الوثائق بسعر ","","",$U$37," جنية مصرى"),""))) -> 
M121: =IFERROR(IF(AND(V122="",$C$127>(SUM(S120,E121)-SUM(K121))/(SUM(Q120,C121)-SUM(G121)),V121>=DATE(YEAR('-- QNB - Current Account --'!$E$3),COLUMN($L$1)+1,0)),((SUM(Q120,C121)-SUM(G121))*$C$127)-((SUM(Q120,C121)-SUM(G121))*(R120)),""),"") ->  | Q121: 1902 | R121: 407.4756046 | S121: 775018.6 | U121: =IF(C121>0,CONCATENATE("شراء ","","",C121," وثيقة"),IF(G121>0,CONCATENATE("إسترداد ","","",G121," وثيقة"),IF(V121=DATE(YEAR('-- QNB - Current Account --'!$E$3),COLUMN($L$1)+1,0),CONCATENATE("إعادة تقييم رصيد الوثائق بسعر ","","",$U$37," جنية مصرى"),""))) -> 
M122: =IFERROR(IF(AND(V123="",$C$127>(SUM(S121,E122)-SUM(K122))/(SUM(Q121,C122)-SUM(G122)),V122>=DATE(YEAR('-- QNB - Current Account --'!$E$3),COLUMN($L$1)+1,0)),((SUM(Q121,C122)-SUM(G122))*$C$127)-((SUM(Q121,C122)-SUM(G122))*(R121)),""),"") ->  | Q122: 1902 | R122: 407.4756046 | S122: 775018.6 | U122: =IF(C122>0,CONCATENATE("شراء ","","",C122," وثيقة"),IF(G122>0,CONCATENATE("إسترداد ","","",G122," وثيقة"),IF(V122=DATE(YEAR('-- QNB - Current Account --'!$E$3),COLUMN($L$1)+1,0),CONCATENATE("إعادة تقييم رصيد الوثائق بسعر ","","",$U$37," جنية مصرى"),""))) -> 
A123: =IF(V123>0,ROW()-5,"") ->  | M123: =IFERROR(IF(AND(V124="",$C$127>(SUM(S122,E123)-SUM(K123))/(SUM(Q122,C123)-SUM(G123)),V123>=DATE(YEAR('-- QNB - Current Account --'!$E$3),COLUMN($L$1)+1,0)),((SUM(Q122,C123)-SUM(G123))*$C$127)-((SUM(Q122,C123)-SUM(G123))*(R122)),""),"") ->  | Q123: =Q122+C123-G123 -> 1902 | R123: =IF(Q123>0,ROUND(S123/Q123,100),0) -> 407.4756046 | S123: =ROUND(SUM(S122,E123,M123)-SUM(K123),100) -> 775018.6 | U123: =IF(C123>0,CONCATENATE("شراء ","","",C123," وثيقة"),IF(G123>0,CONCATENATE("إسترداد ","","",G123," وثيقة"),IF(V123=DATE(YEAR('-- QNB - Current Account --'!$E$3),COLUMN($L$1)+1,0),CONCATENATE("إعادة تقييم رصيد الوثائق بسعر ","","",$U$37," جنية مصرى"),""))) ->  | X123: =IF($V123="","",IFERROR(IF(MONTH($V123)=MONTH($V122),$X122+1,1),1)) -> 
A125: =MAX(A5:A123) -> 37 | C125: =SUM(C6:C123) -> 2732 | E125: =ROUND(SUM(E6:E123),2) -> 1113148.25 | G125: =SUM(G6:G123) -> 912 | I125: =ROUND(SUM(I6:I123),2) -> 374092.05 | K125: =ROUND(SUM(K5:K123),2) -> 371239.53 | L125: =ROUND(SUM(L5:L123),2) -> 2852.52 | M125: =SUM(M5:M123) -> 0 | Q125: =C5+C125-G125 -> 1902 | R125: =IF(Q125>0,S125/Q125,0) -> 407.4756046 | S125: =ROUND(E5+E125-K125+M125,2) -> 775018.6 | U125: رصيد آخر المدة | V125: =IF(TODAY()-V5+1>DATE(YEAR(V5),12,31)-DATE(YEAR(V5)-1,12,31),V5-1+DATE(YEAR(V5),12,31)-DATE(YEAR(V5)-1,12,31),TODAY()) -> 2021-04-30 | X125: =MAX(X5:X123) -> 16
C126: قيمة الوثيقة | G126: التغير اليومى فى سعر الوثيقة | K126: التغير فى سعر الوثيقة | O126: متوسط الربح اليومى | U126: متوسط الربح الشهرى
A127: X | C127: 416.523 | G127: =K127/IF(TODAY()>(DATE(YEAR($V$5),COLUMN(L1)+1,0)),DATE(YEAR($V$125),12,31)-DATE(YEAR($V$125)-1,12,31),INT(TODAY()-$V$5+1)) -> 0.1061997967 | K127: =$C$127-$R$5 -> 12.74397561 | O127: =$C$133/IF(TODAY()-$V$5+1<DATE(YEAR($V$5),12,31)-DATE(YEAR($V$5)-1,12,31),TODAY()-$V$5+1,DATE(YEAR($V$5),12,31)-DATE(YEAR($V$5)-1,12,31)) -> 167.17225 | U127: =$C$133/(IF(TODAY()-$V$5+1<DATE(YEAR($V$5),12,31)-DATE(YEAR($V$5)-1,12,31),TODAY()-$V$5+1,DATE(YEAR($V$5),12,31)-DATE(YEAR($V$5)-1,12,31))/(365/12)) -> 5084.822604
C129: معدل العائد | G129: القيمة السوقية | K129: القيمة الدفترية - السوقية | O129: التغير فى سعر الوثيقة نهاية العام | U129: قيمة الوثيقة نهاية العام
C130: =(($C$127-$R$5)/$R$5)*((DATE(YEAR($V$5),12,31)-DATE(YEAR($V$5)-1,12,31))/IF(TODAY()-$V$5+1<DATE(YEAR($V$5),12,31)-DATE(YEAR($V$5)-1,12,31),TODAY()-$V$5+1,DATE(YEAR($V$5),12,31)-DATE(YEAR($V$5)-1,12,31))) -> 0.09600034542 | G130: =$Q$125*$C$127 -> 792226.746 | K130: =ROUND($G$130-$S$125,2) -> 17208.15 | O130: =$U$130-$D$5 -> 38.7629502 | U130: =IF(TODAY()>(DATE(YEAR($V$5),COLUMN(L1)+1,0)),DATE(YEAR(V5),12,31)-(DATE(YEAR($V$5),COLUMN(L1)+1,0)),DATE(YEAR(V5),12,31)-TODAY())*$G$127+C127 -> 442.5419502
C132: إجمالى الربح المحقق | G132: ربح الرصيد القائم نهاية الشهر | K132: إجمالى الربح نهاية الشهر | O132: ربح الرصيد القائم نهاية العام | U132: إجمالى الربح نهاية العام
C133: =$L$125+$M$125+$K$130 -> 20060.67 | G133: =IF($Q$125>0,($Q$125*($K$127/($V$125-$V$5+1)))*(EOMONTH($V$125,0)-$V$125),0) -> 0 | K133: =$C$133+$G$133 -> 20060.67 | O133: =IF($Q$125>0,($Q$125*($K$127/($V$125-$V$5)))*(DATE(YEAR($V$5),COLUMN($L$1)+1,0)-$V$125),0) -> 49903.9092 | U133: =$C$133+$O$133 -> 69964.5792
E135: =IF(DATE(YEAR($V$5),MONTH($V$5)+1,0)>=TODAY(),TODAY(),IF(DATE(YEAR($V$5),MONTH($V$5)+1,0)<=TODAY(),DATE(YEAR($V$5),MONTH($V$5)+1,0),"")) -> 2021-01-31 | H135: =IF(DATE(YEAR($V$5),MONTH($V$5)+2,0)<=TODAY(),DATE(YEAR($V$5),MONTH($V$5)+2,0),IF(TODAY()>DATE(YEAR($V$5),MONTH($V$5)+1,0),TODAY(),"")) -> 2021-02-28 | K135: =IF(DATE(YEAR($V$5),MONTH($V$5)+3,0)<=TODAY(),DATE(YEAR($V$5),MONTH($V$5)+3,0),IF(TODAY()>DATE(YEAR($V$5),MONTH($V$5)+2,0),TODAY(),"")) -> 2021-03-31 | M135: =IF(DATE(YEAR($V$5),MONTH($V$5)+4,0)<=TODAY(),DATE(YEAR($V$5),MONTH($V$5)+4,0),IF(TODAY()>DATE(YEAR($V$5),MONTH($V$5)+3,0),TODAY(),"")) -> 2021-04-30 | R135: =IF(DATE(YEAR($V$5),MONTH($V$5)+5,0)<=TODAY(),DATE(YEAR($V$5),MONTH($V$5)+5,0),IF(TODAY()>DATE(YEAR($V$5),MONTH($V$5)+4,0),TODAY(),"")) ->  | U135: =IF(DATE(YEAR($V$5),MONTH($V$5)+6,0)<=TODAY(),DATE(YEAR($V$5),MONTH($V$5)+6,0),IF(TODAY()>DATE(YEAR($V$5),MONTH($V$5)+5,0),TODAY(),"")) ->  | V135: Total
C136: قيمة الوثيقة | E136: 407.05 | H136: 410.025 | K136: 413.317 | M136: =IF(M$135<>"",SUM($C$127),"") -> 416.523 | R136: =IF(R$135<>"",SUM($C$127),"") ->  | U136: =IF(U$135<>"",SUM($C$127),"") ->  | V136: =LOOKUP(2,1/(E136:U136<>""),E136:U136) -> 416.523
C137: عدد الوثائق | E137: =(SUMPRODUCT(--($V$5:$V$123<=E135),$C$5:$C$123-$G$5:$G$123)) -> 208 | H137: =(SUMPRODUCT(--($V$5:$V$123<=H135),$C$5:$C$123-$G$5:$G$123)) -> 2038 | K137: =(SUMPRODUCT(--($V$5:$V$123<=K135),$C$5:$C$123-$G$5:$G$123)) -> 2030 | M137: =IF(M$135<>"",(SUMPRODUCT(--($V$5:$V$123<=M135),$C$5:$C$123-$G$5:$G$123)),"") -> 1902 | R137: =IF(R$135<>"",(SUMPRODUCT(--($V$5:$V$123<=R135),$C$5:$C$123-$G$5:$G$123)),"") ->  | U137: =IF(U$135<>"",(SUMPRODUCT(--($V$5:$V$123<=U135),$C$5:$C$123-$G$5:$G$123)),"") ->  | V137: =LOOKUP(2,1/(E137:U137<>""),E137:U137) -> 1902
C138: القيمة الدفترية | E138: =LOOKUP(2,1/($V$5:$V$123<=E135)/($V$5:$V$123>=$V$5),$S$5:$S$123) -> 84364.66 | H138: =SUMIFS($E$5:$E$123,$V$5:$V$123,"<="&H135)-SUMIFS($K$5:$K$123,$V$5:$V$123,"<="&H135) -> 829759.8 | K138: =SUMIFS($E$5:$E$123,$V$5:$V$123,"<="&K135)-SUMIFS($K$5:$K$123,$V$5:$V$123,"<="&K135) -> 827175.47 | M138: =IF(M$135<>"",SUMIFS($E$5:$E$123,$V$5:$V$123,"<="&M135)-SUMIFS($K$5:$K$123,$V$5:$V$123,"<="&M135),"") -> 775018.6 | R138: =IF(R$135<>"",SUMIFS($E$5:$E$123,$V$5:$V$123,"<="&R135)-SUMIFS($K$5:$K$123,$V$5:$V$123,"<="&R135),"") ->  | U138: =IF(U$135<>"",SUMIFS($E$5:$E$123,$V$5:$V$123,"<="&U135)-SUMIFS($K$5:$K$123,$V$5:$V$123,"<="&U135),"") ->  | V138: =LOOKUP(2,1/(E138:U138<>""),E138:U138) -> 775018.6
C139: أرباح إسترداد | E139: =(SUMPRODUCT(--($V$5:$V$123<=E135),$L$5:$L$123)) -> 17.98 | H139: =(SUMPRODUCT(--($V$5:$V$123<=H135),$L$5:$L$123))-SUM(E139) -> 1577.56 | K139: =(SUMPRODUCT(--($V$5:$V$123<=K135),$L$5:$L$123))-SUM(E139,H139) -> 443.91 | M139: =IF(M$135<>"",(SUMPRODUCT(--($V$5:$V$123<=M135),$L$5:$L$123))-SUM(E139,H139,K139),"") -> 813.07 | R139: =IF(R$135<>"",(SUMPRODUCT(--($V$5:$V$123<=R135),$L$5:$L$123))-SUM(E139,H139,K139,M139),"") ->  | U139: =IF(U$135<>"",(SUMPRODUCT(--($V$5:$V$123<=U135),$L$5:$L$123))-SUM(E139,H139,K139,M139,R139),"") ->  | V139: =ROUND(SUM(D139:U139),2) -> 2852.52
C140: التغير فى القيمة العادلة | E140: =SUM(E137)*SUM(E136)-SUM(E138) -> 301.74 | H140: =SUM(H137)*SUM(H136)-SUM(H138)-SUM(E140) -> 5569.41 | K140: =SUM(K137)*SUM(K136)-SUM(K138)-SUM(E140,H140) -> 5986.89 | M140: =IF(M$135<>"",SUM(M137)*SUM(M136)-SUM(M138)-SUM(E140,H140,K140),"") -> 5350.106 | R140: =IF(R$135<>"",SUM(R137)*SUM(R136)-SUM(R138)-SUM(E140,H140,K140,M140),"") ->  | U140: =IF(U$135<>"",SUM(U137)*SUM(U136)-SUM(U138)-SUM(E140,H140,K140,M140,R140),"") ->  | V140: =ROUND(SUM(D140:U140),2) -> 17208.15
C141: إجمالى الأرباح | E141: =SUM(E139:E140) -> 319.72 | H141: =SUM(H139:H140) -> 7146.97 | K141: =SUM(K139:K140) -> 6430.8 | M141: =IF(M$135<>"",SUM(M139:M140),"") -> 6163.176 | R141: =IF(R$135<>"",SUM(R139:R140),"") ->  | U141: =IF(U$135<>"",SUM(U139:U140),"") ->  | V141: =ROUND(SUM(D141:U141),2) -> 20060.67
C142: متوسط الربح اليومى | E142: =IF(E135="","",ROUND(SUM(E141)/(DATEDIF(V5,E135,"D")+(1)),2)) -> 10.31 | H142: =IF(H135="","",ROUND(SUM(H141)/IF(DATE(YEAR($V$5),MONTH($V$5)+2,0)<=TODAY(),DAY(EOMONTH(H135,0)),DATEDIF(E135,H135,"D")),2)) -> 255.25 | K142: =IF(K135="","",ROUND(SUM(K141)/IF(DATE(YEAR($V$5),MONTH($V$5)+3,0)<=TODAY(),DAY(EOMONTH(K135,0)),DATEDIF(H135,K135,"D")),2)) -> 207.45 | M142: =IF(M135<>"",ROUND(SUM(M141)/IF(DATE(YEAR($V$5),MONTH($V$5)+4,0)<=TODAY(),DAY(EOMONTH(M135,0)),DATEDIF(K135,M135,"D")),2),"") -> 205.44 | R142: =IF(R$135<>"",ROUND(SUM(R141)/IF(DATE(YEAR($V$5),MONTH($V$5)+5,0)<=TODAY(),DAY(EOMONTH(R135,0)),DATEDIF(M135,R135,"D")),2),"") ->  | U142: =IF(U$135<>"",ROUND(SUM(U141)/IF(DATE(YEAR($V$5),MONTH($V$5)+6,0)<=TODAY(),DAY(EOMONTH(U135,0)),DATEDIF(R135,U135,"D")),2),"") ->  | V142: =IF(V135="","",ROUND(SUM(V141)/(DATEDIF(V5,TODAY(),"D")+(1)),2)) -> 167.17
E144: =IF(DATE(YEAR($V$5),MONTH($V$5)+7,0)<=TODAY(),DATE(YEAR($V$5),MONTH($V$5)+7,0),IF(TODAY()>DATE(YEAR($V$5),MONTH($V$5)+6,0),TODAY(),"")) ->  | H144: =IF(DATE(YEAR($V$5),MONTH($V$5)+8,0)<=TODAY(),DATE(YEAR($V$5),MONTH($V$5)+8,0),IF(TODAY()>DATE(YEAR($V$5),MONTH($V$5)+7,0),TODAY(),"")) ->  | K144: =IF(DATE(YEAR($V$5),MONTH($V$5)+9,0)<=TODAY(),DATE(YEAR($V$5),MONTH($V$5)+9,0),IF(TODAY()>DATE(YEAR($V$5),MONTH($V$5)+8,0),TODAY(),"")) ->  | M144: =IF(DATE(YEAR($V$5),MONTH($V$5)+10,0)<=TODAY(),DATE(YEAR($V$5),MONTH($V$5)+10,0),IF(TODAY()>DATE(YEAR($V$5),MONTH($V$5)+9,0),TODAY(),"")) ->  | R144: =IF(DATE(YEAR($V$5),MONTH($V$5)+11,0)<=TODAY(),DATE(YEAR($V$5),MONTH($V$5)+11,0),IF(TODAY()>DATE(YEAR($V$5),MONTH($V$5)+10,0),TODAY(),"")) ->  | U144: =IF(DATE(YEAR($V$5),MONTH($V$5)+12,0)<=TODAY(),DATE(YEAR($V$5),MONTH($V$5)+12,0),IF(TODAY()>DATE(YEAR($V$5),MONTH($V$5)+11,0),TODAY(),"")) ->  | V144: =IF(E$144<>"",Total,"") -> 
C145: =IF(E$144<>"",قيمة الوثيقة,"") ->  | E145: =IF(E$144<>"",SUM($C$127),"") ->  | H145: =IF(H$144<>"",SUM($C$127),"") ->  | K145: =IF(K$144<>"",SUM($C$127),"") ->  | M145: =IF(M$144<>"",SUM($C$127),"") ->  | R145: =IF(R$144<>"",SUM($C$127),"") ->  | U145: =IF(U144>TODAY(),"",SUM($C$127)) ->  | V145: =IFERROR(IF(U144>TODAY(),LOOKUP(2,1/(E145:U145<>""),E145:U145),""),"") -> 
C146: =IF(E$144<>"",عدد الوثائق,"") ->  | E146: =IF(E$144<>"",(SUMPRODUCT(--($V$5:$V$123<=E144),$C$5:$C$123-$G$5:$G$123)),"") ->  | H146: =IF(H$144<>"",(SUMPRODUCT(--($V$5:$V$123<=H144),$C$5:$C$123-$G$5:$G$123)),"") ->  | K146: =IF(K$144<>"",(SUMPRODUCT(--($V$5:$V$123<=K144),$C$5:$C$123-$G$5:$G$123)),"") ->  | M146: =IF(M$144<>"",(SUMPRODUCT(--($V$5:$V$123<=M144),$C$5:$C$123-$G$5:$G$123)),"") ->  | R146: =IF(R144>TODAY(),"",(SUMPRODUCT(--($V$5:$V$123<=R144),$C$5:$C$123-$G$5:$G$123))) ->  | U146: =IF(R144>TODAY(),"",(SUMPRODUCT(--($V$5:$V$123<=U144),$C$5:$C$123-$G$5:$G$123))) ->  | V146: =IFERROR(IF(U144>TODAY(),LOOKUP(2,1/(E146:U146<>""),E146:U146),""),"") -> 
C147: =IF(E$144<>"",القيمة الدفترية,"") ->  | E147: =IF(E$144<>"",SUMIFS($E$5:$E$123,$V$5:$V$123,"<="&E144)-SUMIFS($K$5:$K$123,$V$5:$V$123,"<="&E144),"") ->  | H147: =IF(H$144<>"",SUMIFS($E$5:$E$123,$V$5:$V$123,"<="&H144)-SUMIFS($K$5:$K$123,$V$5:$V$123,"<="&H144),"") ->  | K147: =IF(K$144<>"",SUMIFS($E$5:$E$123,$V$5:$V$123,"<="&K144)-SUMIFS($K$5:$K$123,$V$5:$V$123,"<="&K144),"") ->  | M147: =IF(M$144<>"",SUMIFS($E$5:$E$123,$V$5:$V$123,"<="&M144)-SUMIFS($K$5:$K$123,$V$5:$V$123,"<="&M144),"") ->  | R147: =IF(R144>TODAY(),"",SUMIFS($E$5:$E$123,$V$5:$V$123,"<="&R144)-SUMIFS($K$5:$K$123,$V$5:$V$123,"<="&R144)) ->  | U147: =IF(R144>TODAY(),"",SUMIFS($E$5:$E$123,$V$5:$V$123,"<="&U144)-SUMIFS($K$5:$K$123,$V$5:$V$123,"<="&U144)) ->  | V147: =IFERROR(IF(U144>TODAY(),LOOKUP(2,1/(E147:U147<>""),E147:U147),""),"") -> 
C148: =IF(E$144<>"",أرباح إسترداد,"") ->  | E148: =IF(E$144<>"",(SUMPRODUCT(--($V$5:$V$123<=E144),$L$5:$L$123))-SUM(E139,H139,K139,M139,R139,U139),"") ->  | H148: =IF(H$144<>"",(SUMPRODUCT(--($V$5:$V$123<=H144),$L$5:$L$123))-SUM(E139,H139,K139,M139,R139,U139,E148),"") ->  | K148: =IF(K$144<>"",(SUMPRODUCT(--($V$5:$V$123<=K144),$L$5:$L$123))-SUM(E139,H139,K139,M139,R139,U139,E148,H148),"") ->  | M148: =IF(M$144<>"",(SUMPRODUCT(--($V$5:$V$123<=M144),$L$5:$L$123))-SUM(E139,H139,K139,M139,R139,U139,E148,H148,K148),"") ->  | R148: =IF(R144>TODAY(),"",(SUMPRODUCT(--($V$5:$V$123<=R144),$L$5:$L$123))-SUM(E139,H139,K139,M139,R139,U139,E148,H148,K148,M148)) ->  | U148: =IF(R144>TODAY(),"",(SUMPRODUCT(--($V$5:$V$123<=U144),$L$5:$L$123))-SUM(E139,H139,K139,M139,R139,U139,E148,H148,K148,M148,R148)) ->  | V148: =IFERROR(IF(U144>TODAY(),"",ROUND(SUM(V139,D148:U148),2)),"") -> 
C149: =IF(E$144<>"",التغير فى القيمة العادلة,"") ->  | E149: =IF(E$144<>"",SUM(E146)*SUM(E145)-SUM(E147)-SUM(E140,H140,K140,M140,R140,U140),"") ->  | H149: =IF(H$144<>"",SUM(H146)*SUM(H145)-SUM(H147)-SUM(E140,H140,K140,M140,R140,U140,E149),"") ->  | K149: =IF(K$144<>"",SUM(K146)*SUM(K145)-SUM(K147)-SUM(E140,H140,K140,M140,R140,U140,E149,H149),"") ->  | M149: =IF(M$144<>"",SUM(M146)*SUM(M145)-SUM(M147)-SUM(E140,H140,K140,M140,R140,U140,E149,H149,K149),"") ->  | R149: =IF(R144>TODAY(),"",SUM(R146)*SUM(R145)-SUM(R147)-SUM(E140,H140,K140,M140,R140,U140,E149,H149,K149,M149)) ->  | U149: =IF(R144>TODAY(),"",SUM(U146)*SUM(U145)-SUM(U147)-SUM(E140,H140,K140,M140,R140,U140,E149,H149,K149,M149,R149)) ->  | V149: =IFERROR(IF(U144>TODAY(),"",ROUND(SUM(V140,D149:U149),2)),"") -> 
C150: =IF(E$144<>"",إجمالى الأرباح,"") ->  | E150: =IF(E$144<>"",SUM(E148:E149),"") ->  | H150: =IF(H$144<>"",SUM(H148:H149),"") ->  | K150: =IF(K$144<>"",SUM(K148:L149),"") ->  | M150: =IF(M$144<>"",SUM(M148:M149),"") ->  | R150: =IF(R144>TODAY(),"",SUM(R148:R149)) ->  | U150: =IF(R144>TODAY(),"",SUM(U148:U149)) ->  | V150: =IFERROR(IF(U144>TODAY(),"",ROUND(SUM(V141,D150:U150),2)),"") -> 
C151: =IF(E$144<>"",متوسط الربح اليومى,"") ->  | E151: =IF(E$144<>"",ROUND(SUM(E150)/IF(DATE(YEAR($V$5),MONTH($V$5)+7,0)<=TODAY(),DAY(EOMONTH(E144,0)),DATEDIF(U135,E144,"D")),2),"") ->  | H151: =IF(H$144<>"",ROUND(SUM(H150)/IF(DATE(YEAR($V$5),MONTH($V$5)+8,0)<=TODAY(),DAY(EOMONTH(H144,0)),DATEDIF(E144,H144,"D")),2),"") ->  | K151: =IF(K$144<>"",ROUND(SUM(K150)/IF(DATE(YEAR($V$5),MONTH($V$5)+9,0)<=TODAY(),DAY(EOMONTH(K144,0)),DATEDIF(H144,K144,"D")),2),"") ->  | M151: =IF(M$144<>"",ROUND(SUM(M150)/IF(DATE(YEAR($V$5),MONTH($V$5)+10,0)<=TODAY(),DAY(EOMONTH(M144,0)),DATEDIF(K144,M144,"D")),2),"") ->  | R151: =IF(R$144<>"",ROUND(SUM(R150)/IF(DATE(YEAR($V$5),MONTH($V$5)+11,0)<=TODAY(),DAY(EOMONTH(R144,0)),DATEDIF(M144,R144,"D")),2),"") ->  | U151: =IF(U$144<>"",ROUND(SUM(U150)/IF(DATE(YEAR($V$5),MONTH($V$5)+12,0)<=TODAY(),DAY(EOMONTH(U144,0)),DATEDIF(R144,U144,"D")),2),"") ->  | V151: =IFERROR(IF(U144>TODAY(),"",ROUND(SUM(V150)/(DATEDIF(V5,TODAY(),"D")+(1)),2)),"") -> 
C153: Last Day of Next Month | E153: Current Month # of Days | F153: Last Day of Current Month | H153: Last Thursday | I153: 15th Day of Current Month | K153: TODAY | M153: Year # of Days | O153: Year Days Remaining | R153: Year Days Passed | S153: Working Days | U153: =IF(U154>1,"Weeks","Week") -> Weeks | V153: % of Year
C154: =DATE(YEAR($V$125),MONTH($V$125)+2,0) -> 2021-05-31 | E154: =DAY(DATE(YEAR($V$125),MONTH($V$125)+1,1)-1) -> 30 | F154: =DATE(YEAR($V$125),MONTH($V$125)+1,0) -> 2021-04-30 | H154: =SUM(IF(WEEKDAY(EOMONTH($V$125,0)-{0;1;2;3;4;5;6})=5,EOMONTH($V$125,0)-{0;1;2;3;4;5;6}),0) -> 2021-04-29 | I154: =TODAY()-DAY(TODAY())+1+(14) -> 2021-04-15 | K154: =IF(TODAY()>(DATE(YEAR('-- QNB - Current Account --'!E3),COLUMN(L1)+1,0)),(DATE(YEAR('-- QNB - Current Account --'!E3),COLUMN(L1)+1,0)),TODAY()) -> 2021-04-30 | L154: =IF(TODAY()>(DATE(YEAR('-- QNB - Current Account --'!E3),COLUMN(L1)+1,0)),(DATE(YEAR('-- QNB - Current Account --'!E3),COLUMN(L1)+1,0)),TODAY()) -> 2021-04-30 | M154: =DATE(YEAR($V$125),12,31)-DATE(YEAR($V$125)-1,12,31) -> 365 | O154: =IF(TODAY()>(DATE(YEAR($V$5),COLUMN(L1)+1,0)),DATE(YEAR(V5),12,31)-(DATE(YEAR($V$5),COLUMN(L1)+1,0)),DATE(YEAR(V5),12,31)-TODAY()) -> 245 | R154: =IF(TODAY()>(DATE(YEAR($V$5),COLUMN(L1)+1,0)),DATE(YEAR($V$125),12,31)-DATE(YEAR($V$125)-1,12,31),INT(TODAY()-V5+1)) -> 120 | S154: =IF(TODAY()>(DATE(YEAR($V$5),COLUMN(L1)+1,0)),NETWORKDAYS(V5,DATE(YEAR($V$5),COLUMN(L1)+1,0)),NETWORKDAYS(V5,TODAY())) -> 86 | U154: =IF(TODAY()<(DATE(YEAR($V$5),COLUMN(L1)+1,0)),INT(TODAY()-V5)/7,52) -> 17 | V154: =IF(TODAY()>(DATE(YEAR($V$5),COLUMN(L1)+1,0)),DATE(YEAR($V$125),12,31)-DATE(YEAR($V$125)-1,12,31),INT(TODAY()-V5+1))/$M$154 -> 0.3287671233
